Workbook

Sheet Отчет
A1: Текущий рейтинг студентов после пересдач
A2: Дата выгрузки: 14.07.2017
A3: Период: c 2016/2017 учебный год I семестр по 2016/2017 учебный год II семестр
A4: Факультет/отделение: Факультет мировой экономики и мировой политики
A5: Направление подготовки: "Международные отношения"
A6: Уровень образования, номер курса: Бакалавриат 2 курс | U6: - студенты имеющие задолженности
T7: * | U7: - изучение по ИУП
A8: Место | B8: Номер зачетной книжки | C8: Студент | D8: ID | E8: Группа | F8: Образовательная программа студента | G8: Вид места | I8: Кредитно-рейтинговая оценка | J8: Нормировочный коэффициент | K8: Сумма всех кредитов | L8: Нормированная кредитно-рейтинговая оценка | M8: Сумма оценок | N8: Количество оценок | O8: Средний балл | P8: Минимальный балл | Q8: Наличие задодженнстей | R8: Номер места | S8: 2016/2017 учебный год 1 модуль | U8: 2016/2017 учебный год 2 модуль | BE8: 2016/2017 учебный год 3 модуль | BP8: 2016/2017 учебный год 4 модуль
S9: Зачет | U9: Экзамен | BC9: Зачет | BE9: Экзамен | BN9: Зачет | BP9: Экзамен | DS9: Зачет
H10: Номер Row | S10: Проект VI Российско-китайская летняя школа по международным отношениям | T10: Проект Международная конференция Всемирной ассоциации исследователей общественного мнения на тему "Survey Research and the Study of Social and Cultural Change" | U10: "Мягкая сила" и содействие международному развитию | V10: Английский язык | W10: Английский язык | X10: Введение в программирование | Y10: Введение в урбанистику | Z10: Великие книги западной литературы от Гомера до Ницше | AA10: Власть ключей: ранняя история папства | AB10: Глобальные вызовы современности и организация комплексной системы безопасности бизнеса | AC10: Иностранный язык (арабский) | AD10: Иностранный язык (испанский) | AE10: Иностранный язык (итальянский) | AF10: Иностранный язык (китайский) | AG10: Иностранный язык (немецкий) | AH10: Иностранный язык (португальский) | AI10: Иностранный язык (французский) | AJ10: Иностранный язык (японский) | AK10: Культура современных обществ: социологический анализ | AL10: Логика и основы критического мышления | AM10: Мегатренды глобального развития | AN10: Международная безопасность: теория и практика | AO10: Международное развитие в энергетике | AP10: Микроэкономика | AQ10: Новостная грамотность: новость как объект манипуляции | AR10: Основы права | AS10: Основы теории организации и управление персоналом | AT10: Политическая и экономическая история | AU10: Правовые основы бизнеса | AV10: Проект Международная модель ЕАЭС НИУ ВШЭ | AW10: Психология личности и индивидуальных различий | AX10: Россия в современной системе международных отношений | AY10: Современная российская политика | AZ10: Современные информационные технологии | BA10: Современный культурный процесс | BB10: Теория нейронных сетей | BC10: Проект Международная научно-практическая конференция "Психология бизнеса: теория и практика" | BD10: Физическая культура | BE10: Английский язык | BF10: Демография | BG10: Проект Великие о великом: путеводитель по книгам о мировой экономике и политике | BH10: Проект Европейский союз от А до Я | BI10: Проект Разработка инновационных туристических маршрутов в регионах Российской Федерации (Калининградская область, Владимирская область, Камчатский край, Республика Алтай) | BJ10: Проект Разработка инновационных туристических маршрутов в регионах Российской Федерации (Республика Крым, Астраханская область, Архангельская область, Свердловская область) | BK10: Проект Разработка инновационных туристических маршрутов в регионах Российской Федерации (Республика Крым, Астраханская область, Архангельская область, Свердловская область) | BL10: Французский язык (уровень B1) | BM10: Этикет. Деловое общение, корреспонденция, поведение в профессиональной карьере. | BN10: Проект Пополнение словаря аляскинского варианта русского языка | BO10: Проект Школа авторов журнала «Россия в глобальной политике» | BP10: Анализ и моделирование бизнес-процессов | BQ10: Английский язык | BR10: Аудиовизуальные коммуникации: история и современность | BS10: Введение в анализ данных | BT10: Деловая (конкурентная) разведка. Защита бизнеса от угроз в области экономики и финансов | BU10: Иностранный язык (арабский) | BV10: Иностранный язык (испанский) | BW10: Иностранный язык (итальянский) | BX10: Иностранный язык (китайский) | BY10: Иностранный язык (немецкий) | BZ10: Иностранный язык (португальский) | CA10: Иностранный язык (французский) | CB10: Иностранный язык (японский) | CC10: Исламский фундаментализм в современном мире | CD10: Конфликты и миротворчество | CE10: Курсовые работы | CF10: Макроэкономика | CG10: Маркетинг | CH10: Международные экономические отношения | CI10: Мир современной политики: институты и процессы | CJ10: Научный семинар "Методология научно-исследовательской работы в области международных отношений" | CK10: Независимый экзамен по английскому языку (2 курс) | CL10: Нейроматематика | CM10: Основы экономической политики (студенческий семинар Е.Г.Ясина) | CN10: Политология и история политических учений | CO10: Право собственности и имущество компании | CP10: Практическая философия: Что и как определяет человеческие поступки? | CQ10: Проект SEO-продвижение образовательных продуктов | CR10: Проект АТР-экспресс | CS10: Проект Арабская весна как триггер глобального фазового перехода | CT10: Проект Ближневосточный Клуб НИУ ВШЭ | CU10: Проект Европейский союз от А до Я | CV10: Проект Иностранный (въездной) туризм в СССР (1929-1991): экономика, политика, идеология | CW10: Проект Кто делает новости на постсоветском пространстве? | CX10: Проект Лучшие практики и инновации зарубежного образования | CY10: Проект Механизмы глобального и регионального регулирования | CZ10: Проект Новое образование: онлайн-курсы в университетах | DA10: Проект Политический ислам в Центральной Азии | DB10: Проект Привлечение иностранных студентов: как это сделать? | DC10: Проект Профориентационная работа ФМЭиМП со школьниками | DD10: Проект Разработка мобильного приложения факультета МЭиМП | DE10: Проект Социально-экономическая политика России в глобальном контексте | DF10: Проект Социокультурные ценности Японии | DG10: Проект Теоретико-методологические подходы к оценке инструментов ускоренного развития Сибири и Дальнего Востока в контексте их интеграции в АТР | DH10: Проект Торгово-экономические отношения России со странами Азиатско-тихоокеанского региона | DI10: Проект Эволюция радикальных исламистских сообществ на Ближнем востоке и в Центральной Азии после 2011 года | DJ10: Проект Экономика без загрязнений - мировой опыт и Россия | DK10: Проект Экономические процессы и внешнеполитическая ситуация в АТР | DL10: Публичное право | DM10: Современные средства коммуникации и культура потребления | DN10: Социальная психология | DO10: Сравнительный анализ интеграционных процессов в мире | DP10: Теория международных отношений | DQ10: Три века русской поэзии | DR10: Экономика города и городская инфраструктура | DS10: Проект 18 Апрельская международная научная конференция по проблемам развития экономики и общества | DT10: Проект 50 оттенков авторитаризма: типологии, институты, стратегии, эффекты, последствия | DU10: Проект VII Российско-китайская летняя школа по международным отношениям | DV10: Проект Welcome Day факультета мировой экономики и мировой политики | DW10: Проект XVIII Апрельская международная научная конференция по проблемам развития экономики и общества | DX10: Проект Анализ особенностей управления авиастроительной отраслью в зарубежных странах | DY10: Проект Особенности ведения бизнеса в разных странах | DZ10: Проект Разработка мобильного приложения факультета МЭиМП | EA10: Проект Региональное политическое разнообразие в современной России | EB10: Проект Регуляторная и нормативная среда в фармацевтической индустрии | EC10: Проект Университетские экскурсии | ED10: Проект Экскурсии для иностранных студентов | EE10: Физическая культура
A11: Число текущих кредитов: | S11: 0 | T11: 0 | U11: 3 | V11: 0 | W11: 4 | X11: 5 | Y11: 5 | Z11: 5 | AA11: 2 | AB11: 5 | AC11: 3 | AD11: 3 | AE11: 3 | AF11: 3 | AG11: 3 | AH11: 3 | AI11: 3 | AJ11: 3 | AK11: 5 | AL11: 5 | AM11: 3 | AN11: 3 | AO11: 4 | AP11: 5 | AQ11: 5 | AR11: 5 | AS11: 5 | AT11: 4 | AU11: 5 | AV11: 4 | AW11: 5 | AX11: 4 | AY11: 5 | AZ11: 5 | BA11: 5 | BB11: 5 | BC11: 2 | BD11: 0 | BE11: 2 | BF11: 3 | BG11: 4 | BH11: 4 | BI11: 0 | BJ11: 0 | BK11: 5 | BL11: 4 | BM11: 2 | BN11: 0 | BO11: 2 | BP11: 5 | BQ11: 4 | BR11: 5 | BS11: 5 | BT11: 5 | BU11: 3 | BV11: 3 | BW11: 3 | BX11: 3 | BY11: 3 | BZ11: 3 | CA11: 3 | CB11: 3 | CC11: 4 | CD11: 3 | CE11: 5 | CF11: 5 | CG11: 5 | CH11: 3 | CI11: 5 | CJ11: 4 | CK11: 0 | CL11: 5 | CM11: 6 | CN11: 3 | CO11: 5 | CP11: 5 | CQ11: 4 | CR11: 4 | CS11: 4 | CT11: 4 | CU11: 4 | CV11: 0 | CW11: 4 | CX11: 4 | CY11: 4 | CZ11: 4 | DA11: 0 | DB11: 4 | DC11: 4 | DD11: 0 | DE11: 4 | DF11: 3 | DG11: 4 | DH11: 0 | DI11: 0 | DJ11: 4 | DK11: 0 | DL11: 5 | DM11: 5 | DN11: 5 | DO11: 4 | DP11: 4 | DQ11: 5 | DR11: 5 | DS11: 0 | DT11: 0 | DU11: 2 | DV11: 1 | DW11: 2 | DX11: 2 | DY11: 4 | DZ11: 0 | EA11: 4 | EB11: 7 | EC11: 2 | ED11: 2 | EE11: 0
A12: 1 | B12: М151БМОТН029 | C12: Ларионова Анна Александровна | D12: 1171524695 | E12: БМО152 | F12: Международные отношения | G12: Бюдж | H12: =MATCH(D12,Данные!$D:$D,0) -> 30 | I12: 664 | J12: =IF(K12 > 0, MAX(K$12:K$76) / K12, 0) -> 1.044117647 | K12: 68 | L12: =I12*J12 -> 693.2941176 | M12: 195 | N12: 20 | O12: =IF(N12 > 0,M12/N12,0) -> 9.75 | P12: =MIN($S12:EE12) -> 8 | R12: 20 | U12: 10 | W12: 9 | Y12: 10 | AG12: 10 | AM12: 10 | AO12: 9 | AT12: 10 | BD12: + | BE12: 9 | BF12: 10 | BY12: 10 | CE12: 10 | CH12: 10 | CJ12: 10 | CK12: 8 | CN12: 10 | DC12: 10 | DO12: 10 | DP12: 10 | DR12: 10 | EE12: 10 | EF12: 1
A13: 2 | B13: М151БМОТН015 | C13: Егорычева Екатерина Ильинична | D13: 1171525326 | E13: БМО151 | F13: Международные отношения | G13: Комм | H13: =MATCH(D13,Данные!$D:$D,0) -> 18 | I13: 642 | J13: =IF(K13 > 0, MAX(K$12:K$76) / K13, 0) -> 1.044117647 | K13: 68 | L13: =I13*J13 -> 670.3235294 | M13: 189 | N13: 20 | O13: =IF(N13 > 0,M13/N13,0) -> 9.45 | P13: =MIN($S13:EE13) -> 8 | R13: 20 | U13: 10 | W13: 9 | AI13: 10 | AM13: 10 | AO13: 10 | AQ13: 10 | AT13: 9 | BD13: + | BE13: 9 | BF13: 10 | BR13: 9 | CA13: 10 | CE13: 10 | CH13: 9 | CJ13: 10 | CK13: 8 | CN13: 8 | DC13: 10 | DO13: 9 | DP13: 9 | DV13: + | EE13: 10 | EF13: 2
A14: 3 | B14: М151БМОТН014 | C14: Дьячкова Дарья Валерьевна | D14: 1171524635 | E14: БМО151 | F14: Международные отношения | G14: Бюдж | H14: =MATCH(D14,Данные!$D:$D,0) -> 29 | I14: 636 | J14: =IF(K14 > 0, MAX(K$12:K$76) / K14, 0) -> 1.044117647 | K14: 68 | L14: =I14*J14 -> 664.0588235 | M14: 187 | N14: 20 | O14: =IF(N14 > 0,M14/N14,0) -> 9.35 | P14: =MIN($S14:EE14) -> 8 | R14: 20 | U14: 10 | W14: 9 | AG14: 9 | AM14: 10 | AO14: 9 | AP14: 9 | AT14: 8 | BD14: + | BE14: 9 | BF14: 10 | BY14: 9 | CE14: 10 | CF14: 10 | CH14: 9 | CJ14: 10 | CK14: 10 | CN14: 8 | CU14: 10 | DO14: 9 | DP14: 9 | EE14: 10 | EF14: 3
A15: 4 | B15: М151БМОТН049 | C15: Чкадуа Тимерлан Автандилович | D15: 1171524867 | E15: БМО152 | F15: Международные отношения | G15: Бюдж | H15: =MATCH(D15,Данные!$D:$D,0) -> 22 | I15: 584 | J15: =IF(K15 > 0, MAX(K$12:K$76) / K15, 0) -> 1.109375 | K15: 64 | L15: =I15*J15 -> 647.875 | M15: 183 | N15: 20 | O15: =IF(N15 > 0,M15/N15,0) -> 9.15 | P15: =MIN($S15:EE15) -> 7 | R15: 20 | U15: 10 | W15: 8 | AE15: 9 | AM15: 10 | AO15: 10 | AP15: 10 | AT15: 9 | BD15: + | BE15: 8 | BF15: 10 | BW15: 9 | CE15: 8 | CF15: 10 | CH15: 10 | CJ15: 10 | CK15: 7 | CN15: 10 | DO15: 8 | DP15: 8 | DY15: 9 | EE15: 10 | EF15: 4
A16: 5 | B16: М151БМОТН031 | C16: Лукашенко Анна Дмитриевна | D16: 1171526067 | E16: БМО152 | F16: Международные отношения | G16: Бюдж | H16: =MATCH(D16,Данные!$D:$D,0) -> 94 | I16: 618 | J16: =IF(K16 > 0, MAX(K$12:K$76) / K16, 0) -> 1.044117647 | K16: 68 | L16: =I16*J16 -> 645.2647059 | M16: 182 | N16: 20 | O16: =IF(N16 > 0,M16/N16,0) -> 9.1 | P16: =MIN($S16:EE16) -> 7 | R16: 20 | W16: 9 | AG16: 10 | AM16: 7 | AN16: 9 | AQ16: 10 | AT16: 8 | AX16: 10 | BD16: + | BE16: 9 | BF16: 10 | BR16: 9 | BY16: 10 | CD16: 8 | CE16: 9 | CJ16: 10 | CK16: 8 | CN16: 8 | CU16: 10 | DO16: 9 | DP16: 9 | EE16: 10 | EF16: 5
A17: 6 - 7 | B17: М151БМОТН053 | C17: Юхим Инна Михайловна | D17: 1171526131 | E17: БМО152 | F17: Международные отношения | G17: Бюдж | H17: =MATCH(D17,Данные!$D:$D,0) -> 14 | I17: 613 | J17: =IF(K17 > 0, MAX(K$12:K$76) / K17, 0) -> 1.044117647 | K17: 68 | L17: =I17*J17 -> 640.0441176 | M17: 182 | N17: 20 | O17: =IF(N17 > 0,M17/N17,0) -> 9.1 | P17: =MIN($S17:EE17) -> 7 | R17: 20 | U17: 10 | W17: 9 | AI17: 10 | AM17: 8 | AO17: 8 | AP17: 9 | AT17: 9 | BD17: + | BE17: 9 | BF17: 10 | CA17: 10 | CE17: 10 | CF17: 8 | CH17: 9 | CJ17: 9 | CK17: 7 | CN17: 9 | DC17: 10 | DO17: 8 | DP17: 10 | DU17: нет оценки | DV17: + | EC17: + | EE17: 10 | EF17: 6
B18: М151БМОТН012 | C18: Горшенина Анастасия Сергеевна | D18: 1171526099 | E18: БМО151 | F18: Международные отношения | G18: Бюдж | H18: =MATCH(D18,Данные!$D:$D,0) -> 13 | I18: 613 | J18: =IF(K18 > 0, MAX(K$12:K$76) / K18, 0) -> 1.044117647 | K18: 68 | L18: =I18*J18 -> 640.0441176 | M18: 191 | N18: 21 | O18: =IF(N18 > 0,M18/N18,0) -> 9.095238095 | P18: =MIN($S18:EE18) -> 7 | R18: 21 | U18: 9 | W18: 9 | X18: 10 | AH18: 10 | AM18: 8 | AO18: 9 | AT18: 9 | BD18: + | BE18: 9 | BF18: 10 | BZ18: 10 | CE18: 7 | CF18: 9 | CH18: 10 | CJ18: 10 | CK18: 7 | CN18: 8 | DC18: 10 | DO18: 9 | DP18: 9 | DY18: 9 | EE18: 10 | EF18: 7
A19: 8 | B19: М151БМОТН041 | C19: Светличный Владислав Александрович | D19: 1171524528 | E19: БМО152 | F19: Международные отношения | G19: Бюдж | H19: =MATCH(D19,Данные!$D:$D,0) -> 50 | I19: 569 | J19: =IF(K19 > 0, MAX(K$12:K$76) / K19, 0) -> 1.109375 | K19: 64 | L19: =I19*J19 -> 631.234375 | M19: 178 | N19: 20 | O19: =IF(N19 > 0,M19/N19,0) -> 8.9 | P19: =MIN($S19:EE19) -> 7 | R19: 20 | W19: 8 | AC19: 8 | AM19: 7 | AN19: 10 | AP19: 10 | AT19: 10 | AX19: 10 | BD19: + | BE19: 8 | BF19: 10 | BU19: 7 | CD19: 9 | CE19: 9 | CF19: 9 | CJ19: 8 | CK19: 7 | CN19: 8 | CT19: 10 | DI19: нет оценки | DO19: 10 | DP19: 10 | DV19: + | EE19: 10 | EF19: 8
A20: 9 | B20: М151БМОТН002 | C20: Аракелян Данил Эдуардович | D20: 1171524954 | E20: БМО151 | F20: Международные отношения | G20: Бюдж | H20: =MATCH(D20,Данные!$D:$D,0) -> 25 | I20: 601 | J20: =IF(K20 > 0, MAX(K$12:K$76) / K20, 0) -> 1.044117647 | K20: 68 | L20: =I20*J20 -> 627.5147059 | M20: 193 | N20: 22 | O20: =IF(N20 > 0,M20/N20,0) -> 8.772727273 | P20: =MIN($S20:EE20) -> 7 | R20: 22 | U20: 9 | W20: 7 | AA20: 10 | AE20: 8 | AL20: 8 | AM20: 8 | AO20: 10 | AT20: 8 | BD20: + | BE20: 7 | BF20: 8 | BM20: 8 | BW20: 9 | CE20: 10 | CH20: 9 | CJ20: 10 | CK20: 7 | CN20: 8 | CP20: 10 | CY20: 10 | DO20: 9 | DP20: 10 | EE20: 10 | EF20: 9
A21: 10 | B21: М151БМОТН042 | C21: Семенюк Татьяна Олеговна | D21: 1171524989 | E21: БМО152 | F21: Международные отношения | G21: Бюдж | H21: =MATCH(D21,Данные!$D:$D,0) -> 68 | I21: 554 | J21: =IF(K21 > 0, MAX(K$12:K$76) / K21, 0) -> 1.109375 | K21: 64 | L21: =I21*J21 -> 614.59375 | M21: 175 | N21: 20 | O21: =IF(N21 > 0,M21/N21,0) -> 8.75 | P21: =MIN($S21:EE21) -> 7 | R21: 20 | W21: 8 | AH21: 9 | AM21: 7 | AN21: 9 | AR21: 10 | AT21: 7 | AX21: 10 | BD21: + | BE21: 8 | BF21: 10 | BJ21: 10 | BZ21: 9 | CD21: 8 | CE21: 9 | CJ21: 10 | CK21: 8 | CN21: 8 | DL21: 7 | DO21: 8 | DP21: 10 | EE21: 10 | EF21: 10
A22: 11 | B22: М151БМОТН001 | C22: Амиров Андрей Павлович | D22: 1171525116 | E22: БМО151 | F22: Международные отношения | G22: Комм | H22: =MATCH(D22,Данные!$D:$D,0) -> 26 | I22: 553 | J22: =IF(K22 > 0, MAX(K$12:K$76) / K22, 0) -> 1.109375 | K22: 64 | L22: =I22*J22 -> 613.484375 | M22: 163 | N22: 19 | O22: =IF(N22 > 0,M22/N22,0) -> 8.578947368 | P22: =MIN($S22:EE22) -> 6 | R22: 19 | U22: 10 | W22: 7 | AB22: 9 | AH22: 8 | AM22: 6 | AO22: 9 | AT22: 7 | BD22: + | BE22: 7 | BF22: 10 | BT22: 9 | BZ22: 8 | CE22: 10 | CH22: 10 | CJ22: 10 | CK22: 7 | CN22: 7 | DK22: 10 | DO22: 9 | DP22: 10 | EE22: + | EF22: 11
A23: 12 | B23: М151БМОТН009 | C23: Галимова Алина Ленаровна | D23: 1171526035 | E23: БМО151 | F23: Международные отношения | G23: Бюдж | H23: =MATCH(D23,Данные!$D:$D,0) -> 12 | I23: 585 | J23: =IF(K23 > 0, MAX(K$12:K$76) / K23, 0) -> 1.044117647 | K23: 68 | L23: =I23*J23 -> 610.8088235 | M23: 182 | N23: 21 | O23: =IF(N23 > 0,M23/N23,0) -> 8.666666667 | P23: =MIN($S23:EE23) -> 7 | R23: 21 | U23: 8 | W23: 8 | AJ23: 8 | AM23: 7 | AO23: 10 | AP23: 9 | AT23: 7 | BD23: + | BE23: 8 | BF23: 10 | BO23: 10 | CB23: 9 | CE23: 9 | CF23: 10 | CH23: 9 | CJ23: 9 | CK23: 8 | CN23: 8 | DC23: 10 | DO23: 8 | DP23: 7 | EE23: 10 | EF23: 12
A24: 13 | B24: М151БМОТН069 | C24: Тулум Андрей Сергеевич | D24: 1181077905 | E24: БМО151 | F24: Международные отношения | G24: Бюдж | H24: =MATCH(D24,Данные!$D:$D,0) -> 86 | I24: 582 | J24: =IF(K24 > 0, MAX(K$12:K$76) / K24, 0) -> 1.044117647 | K24: 68 | L24: =I24*J24 -> 607.6764706 | M24: 182 | N24: 21 | O24: =IF(N24 > 0,M24/N24,0) -> 8.666666667 | P24: =MIN($S24:EE24) -> 6 | R24: 21 | W24: 8 | AE24: 9 | AM24: 7 | AN24: 9 | AP24: 7 | AT24: 8 | AX24: 10 | BD24: + | BE24: 8 | BF24: 9 | BH24: 9 | BO24: 10 | BW24: 10 | CD24: 7 | CE24: 9 | CF24: 9 | CJ24: 10 | CK24: 6 | CN24: 8 | DO24: 10 | DP24: 9 | EE24: 10 | EF24: 13
A25: 14 | B25: М151БМОТН052 | C25: Эмануилова Руфь Беньяминовна | D25: 1171524924 | E25: БМО152 | F25: Международные отношения | G25: Бюдж | H25: =MATCH(D25,Данные!$D:$D,0) -> 24 | I25: 579 | J25: =IF(K25 > 0, MAX(K$12:K$76) / K25, 0) -> 1.044117647 | K25: 68 | L25: =I25*J25 -> 604.5441176 | M25: 172 | N25: 20 | O25: =IF(N25 > 0,M25/N25,0) -> 8.6 | P25: =MIN($S25:EE25) -> 6 | R25: 20 | U25: 9 | W25: 9 | Y25: 9 | AH25: 9 | AM25: 8 | AO25: 10 | AT25: 6 | BD25: + | BE25: 9 | BF25: 9 | BZ25: 9 | CE25: 9 | CH25: 9 | CJ25: 8 | CK25: 7 | CN25: 7 | CU25: 9 | DO25: 9 | DP25: 8 | DR25: 9 | EE25: 10 | EF25: 14
A26: 15 | B26: М151БМОТН022 | C26: Каменькович Надежда Евгеньевна | D26: 1171526003 | E26: БМО151 | F26: Международные отношения | G26: Бюдж | H26: =MATCH(D26,Данные!$D:$D,0) -> 92 | I26: 543 | J26: =IF(K26 > 0, MAX(K$12:K$76) / K26, 0) -> 1.109375 | K26: 64 | L26: =I26*J26 -> 602.390625 | M26: 173 | N26: 20 | O26: =IF(N26 > 0,M26/N26,0) -> 8.65 | P26: =MIN($S26:EE26) -> 6 | R26: 20 | W26: 9 | AD26: 9 | AM26: 8 | AN26: 7 | AP26: 8 | AT26: 7 | AX26: 10 | BD26: + | BE26: 9 | BF26: 10 | BV26: 9 | CD26: 8 | CE26: 10 | CF26: 8 | CJ26: 9 | CK26: 8 | CN26: 8 | CZ26: 10 | DO26: 10 | DP26: 6 | EE26: 10 | EF26: 15
A27: 16 | B27: М151БМОТН039 | C27: Рыбакова Мария Дмитриевна | D27: 1171525758 | E27: БМО152 | F27: Международные отношения | G27: Бюдж | H27: =MATCH(D27,Данные!$D:$D,0) -> 17 | I27: 575 | J27: =IF(K27 > 0, MAX(K$12:K$76) / K27, 0) -> 1.044117647 | K27: 68 | L27: =I27*J27 -> 600.3676471 | M27: 168 | N27: 20 | O27: =IF(N27 > 0,M27/N27,0) -> 8.4 | P27: =MIN($S27:EE27) -> 7 | R27: 20 | U27: 10 | W27: 7 | Y27: 10 | AE27: 7 | AM27: 8 | AO27: 9 | AT27: 7 | BD27: + | BE27: 7 | BF27: 9 | BW27: 8 | CE27: 9 | CH27: 8 | CJ27: 9 | CK27: 7 | CN27: 8 | DC27: 10 | DO27: 8 | DP27: 7 | DR27: 10 | EE27: 10 | EF27: 16
A28: 17 | B28: М151БМОТН044 | C28: Смагина Александра Владимировна | D28: 1171524899 | E28: БМО152 | F28: Международные отношения | G28: Бюдж | H28: =MATCH(D28,Данные!$D:$D,0) -> 5 | I28: 558 | J28: =IF(K28 > 0, MAX(K$12:K$76) / K28, 0) -> 1.075757576 | K28: 66 | L28: =I28*J28 -> 600.2727273 | M28: 195 | N28: 22 | O28: =IF(N28 > 0,M28/N28,0) -> 8.863636364 | P28: =MIN($S28:EE28) -> 7 | R28: 22 | T28: 10 | U28: 8 | W28: 8 | AD28: 9 | AM28: 8 | AO28: 10 | AT28: 7 | AW28: 9 | BD28: + | BE28: 8 | BF28: 9 | BV28: 8 | CE28: 9 | CH28: 10 | CJ28: 8 | CK28: 8 | CN28: 9 | CZ28: 10 | DN28: 9 | DO28: 9 | DP28: 10 | DW28: + | DX28: 9 | EE28: 10 | EF28: 17
A29: 18 | B29: М151БМОТН006 | C29: Веденяпина Полина Павловна | D29: 1171525486 | E29: БМО151 | F29: Международные отношения | G29: Комм | H29: =MATCH(D29,Данные!$D:$D,0) -> 21 | I29: 541 | J29: =IF(K29 > 0, MAX(K$12:K$76) / K29, 0) -> 1.109375 | K29: 64 | L29: =I29*J29 -> 600.171875 | M29: 171 | N29: 20 | O29: =IF(N29 > 0,M29/N29,0) -> 8.55 | P29: =MIN($S29:EE29) -> 6 | R29: 20 | U29: 10 | W29: 9 | Z29: 9 | AG29: 8 | AM29: 9 | AO29: 9 | AT29: 6 | BD29: + | BE29: 8 | BF29: 9 | BY29: 8 | CE29: 9 | CH29: 9 | CJ29: 8 | CK29: 8 | CN29: 6 | CX29: 10 | DO29: 7 | DP29: 9 | DQ29: 10 | EE29: 10 | EF29: 18
A30: 19 - 20 | B30: М151БМОТН074 | C30: Орлов Илья Александрович | D30: 1190224994 | E30: БМО151 | F30: Международные отношения | G30: Комм | H30: =MATCH(D30,Данные!$D:$D,0) -> 83 | I30: 526 | J30: =IF(K30 > 0, MAX(K$12:K$76) / K30, 0) -> 1.109375 | K30: 64 | L30: =I30*J30 -> 583.53125 | M30: 186 | N30: 22 | O30: =IF(N30 > 0,M30/N30,0) -> 8.454545455 | P30: =MIN($S30:EE30) -> 5 | R30: 22 | W30: 7 | AC30: 5 | AL30: 9 | AM30: 9 | AN30: 9 | AT30: 7 | AX30: 9 | BD30: + | BE30: 7 | BF30: 10 | BG30: 10 | BU30: 8 | CC30: 10 | CD30: 8 | CE30: 10 | CJ30: 8 | CK30: 7 | CN30: 8 | CP30: 8 | CT30: 10 | DO30: 10 | DP30: 7 | EE30: 10 | EF30: 19
B31: М151БМОТН028 | C31: Купцов Александр Владимирович | D31: 1171524480 | E31: БМО152 | F31: Международные отношения | G31: Бюдж | H31: =MATCH(D31,Данные!$D:$D,0) -> 7 | I31: 526 | J31: =IF(K31 > 0, MAX(K$12:K$76) / K31, 0) -> 1.109375 | K31: 64 | L31: =I31*J31 -> 583.53125 | M31: 163 | N31: 20 | O31: =IF(N31 > 0,M31/N31,0) -> 8.15 | P31: =MIN($S31:EE31) -> 5 | R31: 20 | U31: 10 | W31: 5 | AG31: 6 | AM31: 8 | AO31: 7 | AP31: 10 | AT31: 5 | BD31: + | BE31: 6 | BF31: 9 | BY31: 7 | CE31: 10 | CF31: 10 | CH31: 9 | CJ31: 9 | CK31: 7 | CN31: 7 | DO31: 9 | DP31: 10 | DY31: 9 | EE31: 10 | EF31: 20
A32: 21 | B32: М151БМОТН027 | C32: Кублашвили Анджела Гочевна | D32: 1171524747 | E32: БМО152 | F32: Международные отношения | G32: Бюдж | H32: =MATCH(D32,Данные!$D:$D,0) -> 40 | I32: 525 | J32: =IF(K32 > 0, MAX(K$12:K$76) / K32, 0) -> 1.109375 | K32: 64 | L32: =I32*J32 -> 582.421875 | M32: 158 | N32: 19 | O32: =IF(N32 > 0,M32/N32,0) -> 8.315789474 | P32: =MIN($S32:EE32) -> 4 | R32: 19 | W32: 8 | AD32: 9 | AM32: 7 | AN32: 9 | AQ32: 9 | AT32: 4 | AX32: 10 | BD32: + | BE32: 8 | BF32: 10 | BG32: нет оценки | BR32: 8 | BV32: 9 | CD32: 8 | CE32: 7 | CJ32: 9 | CK32: 8 | CN32: 7 | DO32: 9 | DP32: 9 | EE32: 10 | EF32: 21
A33: 22 | B33: М151БМОТН010 | C33: Глиба Виктория Ивановна | D33: 1171524504 | E33: БМО151 | F33: Международные отношения | G33: Бюдж | H33: =MATCH(D33,Данные!$D:$D,0) -> 49 | I33: 554 | J33: =IF(K33 > 0, MAX(K$12:K$76) / K33, 0) -> 1.044117647 | K33: 68 | L33: =I33*J33 -> 578.4411765 | M33: 164 | N33: 20 | O33: =IF(N33 > 0,M33/N33,0) -> 8.2 | P33: =MIN($S33:EE33) -> 4 | R33: 20 | W33: 7 | AE33: 8 | AM33: 7 | AN33: 9 | AP33: 8 | AT33: 4 | AX33: 10 | BD33: + | BE33: 8 | BF33: 9 | BW33: 7 | CD33: 9 | CE33: 7 | CF33: 10 | CJ33: 8 | CK33: 9 | CN33: 6 | CU33: 10 | DO33: 8 | DP33: 10 | DT33: нет оценки | EE33: 10 | EF33: 22
A34: 23 | B34: М151БМОТН035 | C34: Нигмаева Дина Айратовна | D34: 1171524579 | E34: БМО152 | F34: Международные отношения | G34: Бюдж | H34: =MATCH(D34,Данные!$D:$D,0) -> 72 | I34: 520 | J34: =IF(K34 > 0, MAX(K$12:K$76) / K34, 0) -> 1.109375 | K34: 64 | L34: =I34*J34 -> 576.875 | M34: 176 | N34: 21 | O34: =IF(N34 > 0,M34/N34,0) -> 8.380952381 | P34: =MIN($S34:EE34) -> 6 | R34: 21 | W34: 8 | AC34: 7 | AM34: 7 | AN34: 9 | AR34: 8 | AT34: 6 | AX34: 10 | BD34: + | BE34: 8 | BF34: 10 | BU34: 7 | CD34: 9 | CE34: 9 | CJ34: 9 | CK34: 7 | CN34: 8 | CQ34: 10 | CT34: 10 | DA34: нет оценки | DL34: 8 | DO34: 9 | DP34: 7 | DS34: + | DW34: нет оценки | EE34: 10 | EF34: 23
A35: 24 | B35: М151БМОТН023 | C35: Касай Мария Александровна | D35: 1171525971 | E35: БМО151 | F35: Международные отношения | G35: Бюдж | H35: =MATCH(D35,Данные!$D:$D,0) -> 55 | I35: 551 | J35: =IF(K35 > 0, MAX(K$12:K$76) / K35, 0) -> 1.044117647 | K35: 68 | L35: =I35*J35 -> 575.3088235 | M35: 184 | N35: 22 | O35: =IF(N35 > 0,M35/N35,0) -> 8.363636364 | P35: =MIN($S35:EE35) -> 5 | R35: 22 | W35: 8 | Z35: 10 | AI35: 9 | AM35: 8 | AN35: 9 | AT35: 7 | AV35: 10 | AX35: 10 | BD35: + | BE35: 8 | BF35: 10 | CA35: 9 | CD35: 9 | CE35: 6 | CJ35: 8 | CK35: 8 | CN35: 5 | DE35: нет оценки | DJ35: 10 | DO35: 8 | DP35: 7 | DQ35: 6 | DZ35: 9 | EE35: 10 | EF35: 24
A36: 25 | B36: М151БМОТН004 | C36: Баранова Анастасия Сергеевна | D36: 1171526163 | E36: БМО151 | F36: Международные отношения | G36: Бюдж | H36: =MATCH(D36,Данные!$D:$D,0) -> 97 | I36: 518 | J36: =IF(K36 > 0, MAX(K$12:K$76) / K36, 0) -> 1.109375 | K36: 64 | L36: =I36*J36 -> 574.65625 | M36: 153 | N36: 19 | O36: =IF(N36 > 0,M36/N36,0) -> 8.052631579 | P36: =MIN($S36:EE36) -> 5 | R36: 19 | W36: 7 | AG36: 7 | AM36: 8 | AN36: 9 | AT36: 5 | AX36: 10 | AZ36: 10 | BD36: + | BE36: 7 | BF36: 10 | BP36: 9 | BY36: 7 | CD36: 8 | CE36: 10 | CJ36: 8 | CK36: 7 | CN36: 6 | DO36: 8 | DP36: 7 | EE36: 10 | EF36: 25
A37: 26 | B37: М151БМОТН003 | C37: Афанасьева Елена Михайловна | D37: 1171525422 | E37: БМО151 | F37: Международные отношения | G37: Комм | H37: =MATCH(D37,Данные!$D:$D,0) -> 19 | I37: 541 | J37: =IF(K37 > 0, MAX(K$12:K$76) / K37, 0) -> 1.044117647 | K37: 68 | L37: =I37*J37 -> 564.8676471 | M37: 162 | N37: 20 | O37: =IF(N37 > 0,M37/N37,0) -> 8.1 | P37: =MIN($S37:EE37) -> 5 | R37: 20 | U37: 9 | W37: 8 | AD37: 7 | AM37: 8 | AO37: 10 | AP37: 7 | AT37: 5 | BD37: + | BE37: 8 | BF37: 8 | BV37: 8 | CE37: 8 | CF37: 6 | CH37: 9 | CJ37: 10 | CK37: 7 | CN37: 7 | CU37: 10 | DO37: 9 | DP37: 8 | EE37: 10 | EF37: 26
A38: 27 | B38: М151БМОТН062 | C38: Шварц Даниэль | D38: 1181078221 | E38: БМО151 | F38: Международные отношения | G38: Бюдж | H38: =MATCH(D38,Данные!$D:$D,0) -> 91 | I38: 509 | J38: =IF(K38 > 0, MAX(K$12:K$76) / K38, 0) -> 1.109375 | K38: 64 | L38: =I38*J38 -> 564.671875 | M38: 163 | N38: 20 | O38: =IF(N38 > 0,M38/N38,0) -> 8.15 | P38: =MIN($S38:EE38) -> 4 | R38: 20 | W38: 8 | AB38: 8 | AD38: 10 | AM38: 10 | AN38: 6 | AT38: 6 | AX38: 10 | BD38: + | BE38: 7 | BF38: 10 | BT38: 7 | BV38: 9 | CD38: 9 | CE38: 8 | CJ38: 8 | CK38: 8 | CN38: 4 | DB38: 10 | DO38: 8 | DP38: 7 | EE38: 10 | EF38: 27
A39: 28 | B39: М151БМОТН045 | C39: Смирнова Анна Сергеевна | D39: 1171524779 | E39: БМО152 | F39: Международные отношения | G39: Бюдж | H39: =MATCH(D39,Данные!$D:$D,0) -> 41 | I39: 502 | J39: =IF(K39 > 0, MAX(K$12:K$76) / K39, 0) -> 1.109375 | K39: 64 | L39: =I39*J39 -> 556.90625 | M39: 157 | N39: 20 | O39: =IF(N39 > 0,M39/N39,0) -> 7.85 | P39: =MIN($S39:EE39) -> 5 | R39: 20 | W39: 5 | Z39: 10 | AD39: 8 | AM39: 6 | AN39: 9 | AT39: 6 | AX39: 10 | BD39: + | BE39: 5 | BF39: 10 | BI39: нет оценки | BK39: 9 | BV39: 8 | CD39: 8 | CE39: 9 | CJ39: 7 | CK39: 7 | CN39: 7 | DO39: 8 | DP39: 8 | DQ39: 7 | EE39: 10 | EF39: 28
A40: 29 | B40: М151БМОТН011 | C40: Горбунова Полина Андреевна | D40: 1171524328 | E40: БМО151 | F40: Международные отношения | G40: Бюдж | H40: =MATCH(D40,Данные!$D:$D,0) -> 35 | I40: 500 | J40: =IF(K40 > 0, MAX(K$12:K$76) / K40, 0) -> 1.109375 | K40: 64 | L40: =I40*J40 -> 554.6875 | M40: 159 | N40: 20 | O40: =IF(N40 > 0,M40/N40,0) -> 7.95 | P40: =MIN($S40:EE40) -> 4 | R40: 20 | U40: 8 | W40: 6 | AD40: 8 | AM40: 8 | AO40: 9 | AT40: 4 | AU40: 9 | BD40: + | BE40: 6 | BF40: 10 | BV40: 8 | CE40: 9 | CH40: 9 | CJ40: 8 | CK40: 7 | CN40: 8 | CO40: 9 | CQ40: 10 | DO40: 7 | DP40: 6 | EE40: 10 | EF40: 29
A41: 30 | B41: М151БМОТН017 | C41: Ерохина Екатерина Андреевна | D41: 1171524205 | E41: БМО151 | F41: Международные отношения | G41: Бюдж | H41: =MATCH(D41,Данные!$D:$D,0) -> 34 | I41: 524 | J41: =IF(K41 > 0, MAX(K$12:K$76) / K41, 0) -> 1.044117647 | K41: 68 | L41: =I41*J41 -> 547.1176471 | M41: 156 | N41: 20 | O41: =IF(N41 > 0,M41/N41,0) -> 7.8 | P41: =MIN($S41:EE41) -> 5 | R41: 20 | U41: 8 | W41: 8 | AG41: 7 | AM41: 7 | AO41: 10 | AP41: 8 | AT41: 6 | BD41: + | BE41: 8 | BF41: 9 | BY41: 9 | CE41: 10 | CF41: 7 | CH41: 8 | CJ41: 8 | CK41: 7 | CN41: 5 | CY41: 8 | DO41: 6 | DP41: 7 | EE41: 10 | EF41: 30
A42: 31 | B42: М151БМОТН032 | C42: Лыков Михаил Евгеньевич | D42: 1171524719 | E42: БМО152 | F42: Международные отношения | G42: Бюдж | H42: =MATCH(D42,Данные!$D:$D,0) -> 31 | I42: 492 | J42: =IF(K42 > 0, MAX(K$12:K$76) / K42, 0) -> 1.109375 | K42: 64 | L42: =I42*J42 -> 545.8125 | M42: 172 | N42: 22 | O42: =IF(N42 > 0,M42/N42,0) -> 7.818181818 | P42: =MIN($S42:EE42) -> 5 | R42: 22 | U42: 10 | W42: 7 | AF42: 6 | AM42: 9 | AO42: 8 | AT42: 5 | BB42: 9 | BD42: + | BE42: 7 | BF42: 10 | BX42: 6 | CE42: 8 | CH42: 8 | CJ42: 9 | CK42: 8 | CL42: 7 | CM42: 6 | CN42: 7 | CR42: нет оценки | DG42: 9 | DO42: 7 | DP42: 7 | DZ42: 9 | EE42: 10 | EF42: 31
A43: 32 - 33 | B43: М151БМОТН085 | C43: Царенкова Татьяна | D43: 1181084770 | E43: БМО152 | F43: Международные отношения | G43: Бюдж | H43: =MATCH(D43,Данные!$D:$D,0) -> 6 | I43: 491 | J43: =IF(K43 > 0, MAX(K$12:K$76) / K43, 0) -> 1.109375 | K43: 64 | L43: =I43*J43 -> 544.703125 | M43: 148 | N43: 19 | O43: =IF(N43 > 0,M43/N43,0) -> 7.789473684 | P43: =MIN($S43:EE43) -> 5 | R43: 19 | U43: 9 | W43: 7 | AB43: 8 | AD43: 8 | AM43: 10 | AO43: 8 | AT43: 6 | BD43: + | BE43: 7 | BF43: 8 | BT43: 9 | BV43: 7 | CE43: 8 | CH43: 9 | CJ43: 8 | CK43: 7 | CN43: 7 | DO43: 5 | DP43: 7 | ED43: нет оценки | EE43: 10 | EF43: 32
B44: М151БМОТН051 | C44: Эбаноидзе Илья Игоревич | D44: 1171525939 | E44: БМО152 | F44: Международные отношения | G44: Бюдж | H44: =MATCH(D44,Данные!$D:$D,0) -> 54 | I44: 491 | J44: =IF(K44 > 0, MAX(K$12:K$76) / K44, 0) -> 1.109375 | K44: 64 | L44: =I44*J44 -> 544.703125 | M44: 147 | N44: 19 | O44: =IF(N44 > 0,M44/N44,0) -> 7.736842105 | P44: =MIN($S44:EE44) -> 4 | R44: 19 | W44: 8 | AB44: 9 | AG44: 7 | AM44: 7 | AN44: 9 | AT44: 7 | AX44: 10 | BD44: + | BE44: 8 | BF44: 9 | BT44: 5 | BY44: 5 | CD44: 8 | CE44: 10 | CJ44: 9 | CK44: 8 | CN44: 4 | DO44: 7 | DP44: 7 | EE44: 10 | EF44: 33
A45: 34 | B45: М151БМОТН068 | C45: Томчук Виктория Викторовна | D45: 1181077833 | E45: БМО152 | F45: Международные отношения | G45: Бюдж | H45: =MATCH(D45,Данные!$D:$D,0) -> 8 | I45: 521 | J45: =IF(K45 > 0, MAX(K$12:K$76) / K45, 0) -> 1.044117647 | K45: 68 | L45: =I45*J45 -> 543.9852941 | M45: 153 | N45: 20 | O45: =IF(N45 > 0,M45/N45,0) -> 7.65 | P45: =MIN($S45:EE45) -> 3 | Q45: Да | R45: 19 | U45: 8 | W45: 6 | AD45: 8 | AM45: 7 | AO45: 8 | AP45: 8 | AT45: 4 | BD45: + | BE45: 6 | BF45: 10 | BV45: 7 | CE45: 9 | CF45: 9 | CH45: 10 | CJ45: 10 | CK45: 7 | CN45: 3 | DC45: 8 | DO45: 8 | DP45: 7 | EE45: 10 | EF45: 34
A46: 35 | B46: М141БМОТН035 | C46: Пульникова Полина Алексеевна | D46: 498441909 | E46: БМО152 | F46: Международные отношения | G46: Комм | H46: =MATCH(D46,Данные!$D:$D,0) -> 3 | I46: 490 | J46: =IF(K46 > 0, MAX(K$12:K$76) / K46, 0) -> 1.109375 | K46: 64 | L46: =I46*J46 -> 543.59375 | M46: 165 | N46: 21 | O46: =IF(N46 > 0,M46/N46,0) -> 7.857142857 | P46: =MIN($S46:EE46) -> 4 | R46: 21 | S46: 10 | U46: 8 | W46: 6 | AJ46: 8 | AK46: 9 | AM46: 8 | AO46: 9 | AT46: 4 | BD46: + | BE46: 6 | BF46: 10 | CB46: 8 | CE46: 8 | CH46: 9 | CJ46: 9 | CK46: 7 | CN46: 7 | DF46: 8 | DM46: 7 | DO46: 8 | DP46: 6 | EE46: 10 | EF46: 35
A47: 36 | B47: М151БМОТН034 | C47: Нечаева Александра Игоревна | D47: 1171524611 | E47: БМО151 | F47: Международные отношения | G47: Бюдж | H47: =MATCH(D47,Данные!$D:$D,0) -> 28 | I47: 518 | J47: =IF(K47 > 0, MAX(K$12:K$76) / K47, 0) -> 1.044117647 | K47: 68 | L47: =I47*J47 -> 540.8529412 | M47: 152 | N47: 20 | O47: =IF(N47 > 0,M47/N47,0) -> 7.6 | P47: =MIN($S47:EE47) -> 4 | R47: 20 | U47: 7 | W47: 7 | AF47: 6 | AM47: 9 | AO47: 8 | AT47: 4 | AU47: 8 | BD47: + | BE47: 6 | BF47: 9 | BX47: 6 | CE47: 9 | CH47: 8 | CJ47: 8 | CK47: 8 | CN47: 7 | CO47: 9 | CU47: 9 | DO47: 6 | DP47: 8 | EE47: 10 | EF47: 36
A48: 37 | B48: М151БМОТН005 | C48: Батманова Анастасия Олеговна | D48: 1171525030 | E48: БМО151 | F48: Международные отношения | G48: Бюдж | H48: =MATCH(D48,Данные!$D:$D,0) -> 69 | I48: 515 | J48: =IF(K48 > 0, MAX(K$12:K$76) / K48, 0) -> 1.044117647 | K48: 68 | L48: =I48*J48 -> 537.7205882 | M48: 165 | N48: 21 | O48: =IF(N48 > 0,M48/N48,0) -> 7.857142857 | P48: =MIN($S48:EE48) -> 4 | R48: 21 | W48: 7 | AG48: 9 | AM48: 7 | AN48: 8 | AT48: 7 | AX48: 8 | AY48: 4 | BD48: + | BE48: 7 | BF48: 10 | BY48: 9 | CD48: 8 | CE48: 10 | CI48: 7 | CJ48: 8 | CK48: 7 | CN48: 7 | CW48: 10 | CY48: 9 | DO48: 7 | DP48: 6 | EE48: 10 | EF48: 37
A49: 38 | B49: М151БМОТН030 | C49: Луизидис Елизавета Милтиадисовна | D49: 1171525694 | E49: БМО152 | F49: Международные отношения | G49: Комм | H49: =MATCH(D49,Данные!$D:$D,0) -> 52 | I49: 514 | J49: =IF(K49 > 0, MAX(K$12:K$76) / K49, 0) -> 1.044117647 | K49: 68 | L49: =I49*J49 -> 536.6764706 | M49: 160 | N49: 21 | O49: =IF(N49 > 0,M49/N49,0) -> 7.619047619 | P49: =MIN($S49:EE49) -> 4 | R49: 21 | W49: 7 | AB49: 9 | AI49: 7 | AM49: 6 | AN49: 7 | AT49: 4 | AX49: 9 | BD49: + | BE49: 7 | BF49: 10 | BT49: 7 | CA49: 8 | CD49: 8 | CE49: 9 | CJ49: 8 | CK49: 8 | CN49: 5 | CY49: 9 | DO49: 7 | DP49: 7 | EA49: 8 | EE49: 10 | EF49: 38
A50: 39 - 40 | B50: М151БМОТН019 | C50: Зиборов Данил Васильевич | D50: 1171525610 | E50: БМО151 | F50: Международные отношения | G50: Комм | H50: =MATCH(D50,Данные!$D:$D,0) -> 16 | I50: 475 | J50: =IF(K50 > 0, MAX(K$12:K$76) / K50, 0) -> 1.109375 | K50: 64 | L50: =I50*J50 -> 526.953125 | M50: 144 | N50: 19 | O50: =IF(N50 > 0,M50/N50,0) -> 7.578947368 | P50: =MIN($S50:EE50) -> 5 | R50: 19 | U50: 8 | W50: 7 | AB50: 8 | AD50: 8 | AM50: 8 | AO50: 9 | AT50: 5 | BD50: + | BE50: 7 | BF50: 8 | BT50: 8 | BV50: 9 | CE50: 7 | CH50: 9 | CJ50: 7 | CK50: 6 | CN50: 6 | DO50: 6 | DP50: 8 | EE50: 10 | EF50: 39
B51: М151БМОТН013 | C51: Дельянов Василий Георгиевич | D51: 1171525666 | E51: БМО151 | F51: Международные отношения | G51: Комм | H51: =MATCH(D51,Данные!$D:$D,0) -> 51 | I51: 475 | J51: =IF(K51 > 0, MAX(K$12:K$76) / K51, 0) -> 1.109375 | K51: 64 | L51: =I51*J51 -> 526.953125 | M51: 155 | N51: 21 | O51: =IF(N51 > 0,M51/N51,0) -> 7.380952381 | P51: =MIN($S51:EE51) -> 4 | R51: 21 | W51: 6 | AB51: 9 | AC51: 4 | AM51: 6 | AN51: 9 | AT51: 6 | AX51: 10 | BD51: + | BE51: 6 | BF51: 10 | BT51: 9 | BU51: 4 | CC51: н/я | CD51: 8 | CE51: 9 | CJ51: 8 | CK51: 7 | CN51: 7 | CS51: 7 | CT51: 8 | DO51: 7 | DP51: 5 | EE51: 10 | EF51: 40
A52: 41 | B52: М151БМОТН007 | C52: Викторова Арина Владимировна | D52: 1171525270 | E52: БМО151 | F52: Международные отношения | G52: Комм | H52: =MATCH(D52,Данные!$D:$D,0) -> 56 | I52: 474 | J52: =IF(K52 > 0, MAX(K$12:K$76) / K52, 0) -> 1.109375 | K52: 64 | L52: =I52*J52 -> 525.84375 | M52: 144 | N52: 19 | O52: =IF(N52 > 0,M52/N52,0) -> 7.578947368 | P52: =MIN($S52:EE52) -> 4 | R52: 19 | W52: 7 | AB52: 8 | AG52: 10 | AM52: 8 | AN52: 6 | AT52: 4 | AX52: 7 | BD52: + | BE52: 7 | BF52: 10 | BN52: нет оценки | BT52: 8 | BY52: 9 | CD52: 8 | CE52: 7 | CJ52: 8 | CK52: 7 | CN52: 6 | DO52: 6 | DP52: 8 | EE52: 10 | EF52: 41
A53: 42 | B53: М151БМОТН086 | C53: Шестак Сергей Игоревич | D53: 1181084821 | E53: БМО152 | F53: Международные отношения | G53: Бюдж | H53: =MATCH(D53,Данные!$D:$D,0) -> 79 | I53: 501 | J53: =IF(K53 > 0, MAX(K$12:K$76) / K53, 0) -> 1.044117647 | K53: 68 | L53: =I53*J53 -> 523.1029412 | M53: 150 | N53: 20 | O53: =IF(N53 > 0,M53/N53,0) -> 7.5 | P53: =MIN($S53:EE53) -> 5 | R53: 20 | W53: 7 | AI53: 8 | AM53: 7 | AN53: 9 | AP53: 8 | AT53: 5 | AX53: 10 | BD53: + | BE53: 7 | BF53: 7 | CA53: 8 | CD53: 8 | CE53: 8 | CF53: 6 | CJ53: 8 | CK53: 6 | CN53: 6 | CU53: 10 | DO53: 7 | DP53: 5 | EE53: 10 | EF53: 42
A54: 43 | B54: М151БМОТН077 | C54: Брозовская Влада | D54: 1204015568 | E54: БМО152 | F54: Международные отношения | G54: Бюдж | H54: =MATCH(D54,Данные!$D:$D,0) -> 84 | I54: 467 | J54: =IF(K54 > 0, MAX(K$12:K$76) / K54, 0) -> 1.109375 | K54: 64 | L54: =I54*J54 -> 518.078125 | M54: 161 | N54: 21 | O54: =IF(N54 > 0,M54/N54,0) -> 7.666666667 | P54: =MIN($S54:EE54) -> 5 | R54: 21 | W54: 7 | AC54: 7 | AM54: 6 | AN54: 8 | AS54: 8 | AT54: 5 | AX54: 9 | BD54: + | BE54: 7 | BF54: 10 | BU54: 7 | CD54: 8 | CE54: 7 | CG54: 8 | CJ54: 8 | CK54: 6 | CN54: 6 | CT54: 10 | DB54: 10 | DO54: 7 | DP54: 7 | EE54: 10 | EF54: 43
A55: 44 | B55: М151БМОТН057 | C55: Навратилова Яна | D55: 1181078293 | E55: БМО152 | F55: Международные отношения | G55: Бюдж | H55: =MATCH(D55,Данные!$D:$D,0) -> 77 | I55: 462 | J55: =IF(K55 > 0, MAX(K$12:K$76) / K55, 0) -> 1.109375 | K55: 64 | L55: =I55*J55 -> 512.53125 | M55: 170 | N55: 22 | O55: =IF(N55 > 0,M55/N55,0) -> 7.727272727 | P55: =MIN($S55:EE55) -> 4 | R55: 22 | W55: 8 | AC55: 7 | AM55: 6 | AN55: 9 | AS55: 8 | AT55: 4 | AX55: 8 | BD55: + | BE55: 8 | BF55: 10 | BU55: 6 | CC55: 9 | CD55: 8 | CE55: 5 | CG55: 9 | CJ55: 7 | CK55: 8 | CN55: 6 | CT55: 10 | DB55: 10 | DO55: 6 | DP55: 8 | DS55: + | DW55: нет оценки | EE55: 10 | EF55: 44
A56: 45 | B56: М151БМОТН063 | C56: Абдолова Садаф | D56: 1181077809 | E56: БМО151 | F56: Международные отношения | G56: Бюдж | H56: =MATCH(D56,Данные!$D:$D,0) -> 4 | I56: 459 | J56: =IF(K56 > 0, MAX(K$12:K$76) / K56, 0) -> 1.109375 | K56: 64 | L56: =I56*J56 -> 509.203125 | M56: 176 | N56: 23 | O56: =IF(N56 > 0,M56/N56,0) -> 7.652173913 | P56: =MIN($S56:EE56) -> 5 | R56: 23 | S56: 9 | W56: 5 | AD56: 6 | AM56: 7 | AN56: 9 | AT56: 5 | AV56: 10 | AX56: 8 | BA56: 7 | BD56: + | BE56: 6 | BF56: 10 | BG56: 10 | BV56: 7 | CD56: 8 | CE56: 9 | CJ56: 8 | CK56: 6 | CN56: 6 | DD56: 9 | DN56: 8 | DO56: 7 | DP56: 6 | EE56: 10 | EF56: 45
A57: 46 | B57: М151БМОТН050 | C57: Шестеркин Максим Михайлович | D57: 1171524173 | E57: БМО152 | F57: Международные отношения | G57: Бюдж | H57: =MATCH(D57,Данные!$D:$D,0) -> 44 | I57: 455 | J57: =IF(K57 > 0, MAX(K$12:K$76) / K57, 0) -> 1.109375 | K57: 64 | L57: =I57*J57 -> 504.765625 | M57: 137 | N57: 19 | O57: =IF(N57 > 0,M57/N57,0) -> 7.210526316 | P57: =MIN($S57:EE57) -> 4 | R57: 19 | W57: 6 | AB57: 8 | AI57: 7 | AM57: 8 | AN57: 6 | AT57: 4 | AX57: 8 | BD57: + | BE57: 6 | BF57: 10 | BT57: 7 | CA57: 8 | CD57: 7 | CE57: 8 | CJ57: 8 | CK57: 7 | CN57: 6 | DO57: 6 | DP57: 7 | EE57: 10 | EF57: 46
A58: 47 | B58: М151БМОТН070 | C58: Хромова Альбина Олеговна | D58: 1181077931 | E58: БМО152 | F58: Международные отношения | G58: Бюдж | H58: =MATCH(D58,Данные!$D:$D,0) -> 9 | I58: 481 | J58: =IF(K58 > 0, MAX(K$12:K$76) / K58, 0) -> 1.044117647 | K58: 68 | L58: =I58*J58 -> 502.2205882 | M58: 144 | N58: 20 | O58: =IF(N58 > 0,M58/N58,0) -> 7.2 | P58: =MIN($S58:EE58) -> 4 | R58: 20 | U58: 8 | W58: 8 | AG58: 5 | AM58: 7 | AO58: 8 | AS58: 7 | AT58: 4 | BD58: + | BE58: 8 | BF58: 10 | BY58: 5 | CE58: 7 | CG58: 9 | CH58: 7 | CJ58: 8 | CK58: 8 | CN58: 4 | CU58: 9 | DO58: 5 | DP58: 7 | EE58: 10 | EF58: 47
A59: 48 - 49 | B59: М151БМОТН056 | C59: Игаз Роман | D59: 1181078173 | E59: БМО151 | F59: Международные отношения | G59: Бюдж | H59: =MATCH(D59,Данные!$D:$D,0) -> 11 | I59: 448 | J59: =IF(K59 > 0, MAX(K$12:K$76) / K59, 0) -> 1.109375 | K59: 64 | L59: =I59*J59 -> 497 | M59: 148 | N59: 20 | O59: =IF(N59 > 0,M59/N59,0) -> 7.4 | P59: =MIN($S59:EE59) -> 4 | R59: 20 | U59: 9 | W59: 7 | AB59: 7 | AE59: 7 | AM59: 9 | AO59: 9 | AT59: 7 | BD59: + | BE59: 8 | BF59: 10 | BT59: 5 | BW59: 7 | CE59: 8 | CH59: 6 | CJ59: 7 | CK59: 7 | CN59: 4 | DB59: 10 | DO59: 4 | DP59: 7 | EE59: 10 | EF59: 48
B60: М151БМОТН008 | C60: Внучкова Дарья Владимировна | D60: 1171525246 | E60: БМО151 | F60: Международные отношения | G60: Комм | H60: =MATCH(D60,Данные!$D:$D,0) -> 27 | I60: 448 | J60: =IF(K60 > 0, MAX(K$12:K$76) / K60, 0) -> 1.109375 | K60: 64 | L60: =I60*J60 -> 497 | M60: 141 | N60: 20 | O60: =IF(N60 > 0,M60/N60,0) -> 7.05 | P60: =MIN($S60:EE60) -> 4 | R60: 20 | U60: 9 | W60: 6 | AB60: 9 | AE60: 4 | AM60: 6 | AO60: 8 | AT60: 5 | BD60: + | BE60: 6 | BF60: 10 | BT60: 8 | BW60: 4 | CE60: 9 | CH60: 8 | CJ60: 8 | CK60: 6 | CN60: 5 | CV60: 8 | DO60: 6 | DP60: 6 | EE60: 10 | EF60: 49
A61: 50 | B61: М151БМОТН047 | C61: Сухобаевский Алексей Игоревич | D61: 1171525358 | E61: БМО151 | F61: Международные отношения | G61: Комм | H61: =MATCH(D61,Данные!$D:$D,0) -> 59 | I61: 445 | J61: =IF(K61 > 0, MAX(K$12:K$76) / K61, 0) -> 1.109375 | K61: 64 | L61: =I61*J61 -> 493.671875 | M61: 141 | N61: 20 | O61: =IF(N61 > 0,M61/N61,0) -> 7.05 | P61: =MIN($S61:EE61) -> 4 | R61: 20 | W61: 6 | AI61: 5 | AM61: 10 | AN61: 7 | AS61: 7 | AT61: 4 | AX61: 8 | BD61: + | BE61: 6 | BF61: 9 | CA61: 6 | CD61: 8 | CE61: 7 | CG61: 9 | CJ61: 7 | CK61: 7 | CN61: 5 | DO61: 8 | DP61: 5 | EA61: 7 | EE61: 10 | EF61: 50
A62: 51 | B62: М151БМОТН036 | C62: Платонова Анастасия Ивановна | D62: 1171525550 | E62: БМО152 | F62: Международные отношения | G62: Комм | H62: =MATCH(D62,Данные!$D:$D,0) -> 63 | I62: 435 | J62: =IF(K62 > 0, MAX(K$12:K$76) / K62, 0) -> 1.109375 | K62: 64 | L62: =I62*J62 -> 482.578125 | M62: 131 | N62: 19 | O62: =IF(N62 > 0,M62/N62,0) -> 6.894736842 | P62: =MIN($S62:EE62) -> 5 | R62: 19 | W62: 7 | AG62: 6 | AM62: 6 | AN62: 6 | AS62: 8 | AT62: 5 | AX62: 6 | BD62: + | BE62: 7 | BF62: 9 | BY62: 5 | CD62: 7 | CE62: 6 | CG62: 9 | CJ62: 8 | CK62: 7 | CN62: 5 | DO62: 6 | DP62: 8 | DS62: + | DW62: нет оценки | EE62: 10 | EF62: 51
A63: 52 | B63: М151БМОТН048 | C63: Федюшкина Екатерина Александровна | D63: 1171525294 | E63: БМО152 | F63: Международные отношения | G63: Комм | H63: =MATCH(D63,Данные!$D:$D,0) -> 57 | I63: 433 | J63: =IF(K63 > 0, MAX(K$12:K$76) / K63, 0) -> 1.109375 | K63: 64 | L63: =I63*J63 -> 480.359375 | M63: 130 | N63: 19 | O63: =IF(N63 > 0,M63/N63,0) -> 6.842105263 | P63: =MIN($S63:EE63) -> 4 | R63: 19 | W63: 7 | AB63: 9 | AG63: 5 | AM63: 6 | AN63: 6 | AT63: 4 | AX63: 8 | BD63: + | BE63: 7 | BF63: 9 | BT63: 8 | BY63: 5 | CD63: 7 | CE63: 8 | CJ63: 6 | CK63: 7 | CN63: 6 | DO63: 6 | DP63: 6 | EB63: нет оценки | EE63: 10 | EF63: 52
A64: 53 | B64: М151БМОТН055 | C64: Ахонов Осман | D64: 1181078245 | E64: БМО151 | F64: Международные отношения | G64: Бюдж | H64: =MATCH(D64,Данные!$D:$D,0) -> 38 | I64: 431 | J64: =IF(K64 > 0, MAX(K$12:K$76) / K64, 0) -> 1.109375 | K64: 64 | L64: =I64*J64 -> 478.140625 | M64: 127 | N64: 19 | O64: =IF(N64 > 0,M64/N64,0) -> 6.684210526 | P64: =MIN($S64:EE64) -> 4 | Q64: Да | R64: 18 | V64: 5 | AF64: 4 | AM64: 6 | AN64: 6 | AT64: 3 * | AW64: 8 | AX64: 8 | BD64: + | BE64: 4 | BF64: 10 | BX64: 5 | CD64: 7 | CE64: 10 | CJ64: 8 | CK64: 6 | CN64: 7 | DN64: 6 | DO64: 8 | DP64: 6 | EE64: 10 | EF64: 53
A65: 54 | B65: М151БМОТН018 | C65: Журавлева Анастасия Владимировна | D65: 1171525638 | E65: БМО151 | F65: Международные отношения | G65: Комм | H65: =MATCH(D65,Данные!$D:$D,0) -> 102 | I65: 455 | J65: =IF(K65 > 0, MAX(K$12:K$76) / K65, 0) -> 1.044117647 | K65: 68 | L65: =I65*J65 -> 475.0735294 | M65: 137 | N65: 20 | O65: =IF(N65 > 0,M65/N65,0) -> 6.85 | P65: =MIN($S65:EE65) -> 4 | R65: 20 | W65: 6 | AB65: 8 | AD65: 7 | AM65: 6 | AN65: 7 | AT65: 5 | AX65: 8 | BD65: + | BE65: 6 | BF65: 9 | BT65: 6 | BV65: 7 | CD65: 8 | CE65: 5 | CJ65: 8 | CK65: 6 | CN65: 4 | CU65: 9 | DO65: 6 | DP65: 6 | EE65: 10 | EF65: 54
A66: 55 | B66: М151БМОТН079 | C66: Литвинюк Владислав | D66: 1181084838 | E66: БМО151 | F66: Международные отношения | G66: Бюдж | H66: =MATCH(D66,Данные!$D:$D,0) -> 37 | I66: 426 | J66: =IF(K66 > 0, MAX(K$12:K$76) / K66, 0) -> 1.109375 | K66: 64 | L66: =I66*J66 -> 472.59375 | M66: 130 | N66: 19 | O66: =IF(N66 > 0,M66/N66,0) -> 6.842105263 | P66: =MIN($S66:EE66) -> 4 | R66: 19 | U66: 7 | W66: 7 | AI66: 6 | AM66: 4 | AO66: 7 | AT66: 4 | AU66: 8 | BD66: + | BE66: 7 | BF66: 10 | CA66: 8 | CE66: 6 | CH66: 8 | CJ66: 8 | CK66: 7 | CN66: 5 | CO66: 8 | CQ66: нет оценки | DO66: 5 | DP66: 5 | EE66: 10 | EF66: 55
A67: 56 | B67: М151БМОТН016 | C67: Елизарова Анастасия Константиновна | D67: 1171525582 | E67: БМО151 | F67: Международные отношения | G67: Комм | H67: =MATCH(D67,Данные!$D:$D,0) -> 15 | I67: 420 | J67: =IF(K67 > 0, MAX(K$12:K$76) / K67, 0) -> 1.109375 | K67: 64 | L67: =I67*J67 -> 465.9375 | M67: 141 | N67: 20 | O67: =IF(N67 > 0,M67/N67,0) -> 7.05 | P67: =MIN($S67:EE67) -> 4 | R67: 20 | U67: 7 | W67: 8 | AD67: 8 | AM67: 5 | AO67: 7 | AP67: 6 | AT67: 4 | BD67: + | BE67: 8 | BF67: 10 | BG67: 10 | BV67: 7 | CE67: 6 | CF67: 7 | CH67: 9 | CJ67: 6 | CK67: 7 | CN67: 5 | DO67: 5 | DP67: 6 | EE67: 10 | EF67: 56
A68: 57 | B68: М151БМОТН040 | C68: Самородова Алена Дмитриевна | D68: 1171525454 | E68: БМО152 | F68: Международные отношения | G68: Комм | H68: =MATCH(D68,Данные!$D:$D,0) -> 20 | I68: 433 | J68: =IF(K68 > 0, MAX(K$12:K$76) / K68, 0) -> 1.075757576 | K68: 66 | L68: =I68*J68 -> 465.8030303 | M68: 131 | N68: 19 | O68: =IF(N68 > 0,M68/N68,0) -> 6.894736842 | P68: =MIN($S68:EE68) -> 4 | R68: 19 | U68: 6 | W68: 6 | AE68: 6 | AM68: 6 | AO68: 8 | AS68: 8 | AT68: 4 | BC68: + | BD68: + | BE68: 7 | BF68: 9 | BW68: 6 | CE68: 8 | CG68: 8 | CH68: 9 | CJ68: 7 | CK68: 6 | CN68: 5 | DO68: 6 | DP68: 6 | DT68: нет оценки | EE68: 10 | EF68: 57
A69: 58 | B69: М151БМОТН061 | C69: Черезов Евгений Сергеевич | D69: 1181078125 | E69: БМО152 | F69: Международные отношения | G69: Бюдж | H69: =MATCH(D69,Данные!$D:$D,0) -> 10 | I69: 425 | J69: =IF(K69 > 0, MAX(K$12:K$76) / K69, 0) -> 1.044117647 | K69: 68 | L69: =I69*J69 -> 443.75 | M69: 127 | N69: 20 | O69: =IF(N69 > 0,M69/N69,0) -> 6.35 | P69: =MIN($S69:EE69) -> 4 | R69: 20 | U69: 6 | W69: 5 | AD69: 6 | AM69: 8 | AO69: 7 | AP69: 6 | AT69: 4 | BD69: + | BE69: 5 | BF69: 8 | BV69: 4 | CE69: 8 | CF69: 7 | CH69: 7 | CJ69: 7 | CK69: 6 | CN69: 5 | CY69: 8 | DO69: 5 | DP69: 5 | EE69: 10 | EF69: 58
A70: 59 | B70: М151БМОТН021 | C70: Калугина Мария Геннадьевна | D70: 1171524352 | E70: БМО151 | F70: Международные отношения | G70: Бюдж | H70: =MATCH(D70,Данные!$D:$D,0) -> 36 | I70: 395 | J70: =IF(K70 > 0, MAX(K$12:K$76) / K70, 0) -> 1.109375 | K70: 64 | L70: =I70*J70 -> 438.203125 | M70: 122 | N70: 19 | O70: =IF(N70 > 0,M70/N70,0) -> 6.421052632 | P70: =MIN($S70:EE70) -> 3 | Q70: Да | R70: 18 | U70: 7 | W70: 6 | AE70: 5 | AM70: 6 | AO70: 8 | AR70: 6 | AT70: 4 | BD70: + | BE70: 6 | BF70: 10 | BW70: 5 | CE70: 7 | CH70: 9 | CJ70: 8 | CK70: 6 | CN70: 5 | DL70: 5 | DO70: 6 | DP70: 3 | EE70: 10 | EF70: 59
A71: 60 | B71: М151БМОТН072 | C71: Шевченко Елизавета Андреевна | D71: 1181078007 | E71: БМО152 | F71: Международные отношения | G71: Бюдж | H71: =MATCH(D71,Данные!$D:$D,0) -> 88 | I71: 380 | J71: =IF(K71 > 0, MAX(K$12:K$76) / K71, 0) -> 1.109375 | K71: 64 | L71: =I71*J71 -> 421.5625 | M71: 114 | N71: 19 | O71: =IF(N71 > 0,M71/N71,0) -> 6 | P71: =MIN($S71:EE71) -> 4 | R71: 19 | W71: 4 | AB71: 8 | AG71: 4 | AM71: 10 | AN71: 5 | AT71: 4 | AX71: 7 | BD71: + | BE71: 4 | BF71: 7 | BT71: 7 | BY71: 4 | CD71: 6 | CE71: 6 | CJ71: 6 | CK71: 6 | CN71: 5 | DO71: 5 | DP71: 6 | EE71: 10 | EF71: 60
A72: 61 | B72: М151БМОТН087 | C72: Ибрагим Дианна Джавдатовна | D72: 1256428992 | E72: БМО151 | F72: Международные отношения | G72: Бюдж | H72: =MATCH(D72,Данные!$D:$D,0) -> 85 | I72: 379 | J72: =IF(K72 > 0, MAX(K$12:K$76) / K72, 0) -> 1.109375 | K72: 64 | L72: =I72*J72 -> 420.453125 | M72: 136 | N72: 21 | O72: =IF(N72 > 0,M72/N72,0) -> 6.476190476 | P72: =MIN($S72:EE72) -> 4 | R72: 21 | W72: 4 | AC72: 8 | AM72: 6 | AN72: 7 | AR72: 6 | AT72: 4 | AX72: 7 | BD72: + | BE72: 4 | BF72: 10 | BU72: 7 | CC72: 9 | CD72: 5 | CE72: 4 | CJ72: 7 | CK72: 6 | CN72: 5 | CT72: 10 | DL72: 5 | DO72: 5 | DP72: 7 | EE72: 10 | EF72: 61
A73: 62 | B73: М151БМОТН075 | C73: Насырходжаев Иброхимбек Давронович | D73: 1181084889 | E73: БМО152 | F73: Международные отношения | G73: Бюдж | H73: =MATCH(D73,Данные!$D:$D,0) -> 82 | I73: 373 | J73: =IF(K73 > 0, MAX(K$12:K$76) / K73, 0) -> 1.109375 | K73: 64 | L73: =I73*J73 -> 413.796875 | M73: 133 | N73: 21 | O73: =IF(N73 > 0,M73/N73,0) -> 6.333333333 | P73: =MIN($S73:EE73) -> 4 | R73: 21 | W73: 5 | AH73: 4 | AM73: 7 | AN73: 7 | AR73: 5 | AT73: 4 | AX73: 10 | BD73: + | BE73: 5 | BF73: 9 | BL73: 8 | BZ73: 4 | CD73: 5 | CE73: 4 | CJ73: 7 | CK73: 6 | CN73: 6 | DB73: 10 | DL73: 6 | DO73: 6 | DP73: 5 | EE73: 10 | EF73: 62
A74: 63 | B74: М151БМОТН037 | C74: Полунин Андрей Олегович | D74: 1171524843 | E74: БМО152 | F74: Международные отношения | G74: Бюдж | H74: =MATCH(D74,Данные!$D:$D,0) -> 32 | I74: 344 | J74: =IF(K74 > 0, MAX(K$12:K$76) / K74, 0) -> 1.109375 | K74: 64 | L74: =I74*J74 -> 381.625 | M74: 115 | N74: 18 | O74: =IF(N74 > 0,M74/N74,0) -> 6.388888889 | P74: =MIN($S74:EE74) -> 4 | Q74: Да | R74: 18 | U74: 8 | W74: 4 | Y74: 4 | AE74: 5 | AM74: 5 | AO74: 6 | AT74: 5 | BD74: + | BE74: 4 | BF74: 9 | BW74: 5 | CE74: 8 | CH74: н/я (ув) | CJ74: 10 | CK74: 7 | CN74: 4 | DH74: 10 | DO74: н/я (ув) | DP74: 7 | DR74: 4 | EE74: 10 | EF74: 63
A75: 64 | B75: М151БМОТН078 | C75: Еремеев Иван | D75: 1181084855 | E75: БМО151 | F75: Международные отношения | G75: Бюдж | H75: =MATCH(D75,Данные!$D:$D,0) -> 81 | I75: 318 | J75: =IF(K75 > 0, MAX(K$12:K$76) / K75, 0) -> 1.109375 | K75: 64 | L75: =I75*J75 -> 352.78125 | M75: 100 | N75: 19 | O75: =IF(N75 > 0,M75/N75,0) -> 5.263157895 | P75: =MIN($S75:EE75) -> 3 | Q75: Да | R75: 18 | W75: 6 | AG75: 5 | AM75: 4 | AN75: 8 | AP75: 4 | AT75: 4 | AX75: 7 | BD75: + | BE75: 5 | BF75: 6 | BY75: 3 | CD75: 5 | CE75: 4 | CF75: 5 | CJ75: 4 | CK75: 6 | CN75: 4 | DO75: 5 | DP75: 5 | EE75: 10 | EF75: 64
A76: 65 | B76: 116-24/12-143 | C76: Ткачук Андрей Александрович | D76: 1646278328 | E76: БМО152 | F76: Международные отношения | G76: Комм | H76: =MATCH(D76,Данные!$D:$D,0) -> 76 | I76: 329 | J76: =IF(K76 > 0, MAX(K$12:K$76) / K76, 0) -> 1 | K76: 71 | L76: =I76*J76 -> 329 | M76: 115 | N76: 17 | O76: =IF(N76 > 0,M76/N76,0) -> 6.764705882 | P76: =MIN($S76:EE76) -> 4 | Q76: Да | R76: 16 | W76: 5 | X76: 4 | AJ76: н/я * | AM76: 8 | AN76: 8 | AT76: 2 * | AX76: 10 | BD76: 10 | BE76: 7 | BF76: 7 | BQ76: 7 | BS76: н/я (ув) | CB76: н/я (ув) * | CD76: 5 | CE76: 6 | CH76: н/я | CJ76: 7 | CK76: 7 | CN76: 5 | DO76: н/я | DP76: 7 | EE76: 10 | EF76: 65

Sheet Данные (hidden)
A1: ID | B1: Оценка из 10 баллов до пересдач | C1: Группа | D1: Студент | E1: Фамилия Имя Отчество | F1: Номер студенческого билета | G1: Строка учебного плана | H1: Текущих кредитов за испытание | I1: Вид испытания | J1: Календарный период по плану | K1: Неявка до пересдач | L1: В текущий рейтинг | M1: Текущих кредитов для студента | N1: Оценка зачет/незачет до пересдач | O1: Является бюджетным | P1: Учебный план | Q1: Вид записи РУП | R1: Вид дисциплины по ИУП | S1: Номер Row | T1: Образовательная программа студента
A2: 1 | B2: 2 | C2: 3 | D2: 4 | E2: 5 | F2: 6 | G2: 7 | H2: 8 | I2: 9 | J2: 10 | K2: 11 | L2: 12 | M2: 13 | N2: 14 | O2: 15 | P2: 16 | Q2: 17 | R2: 18 | S2: 19 | T2: 20
A3: 1690216176 | B3: 10 | C3: БМО152 | D3: 498441909 | E3: Пульникова Полина Алексеевна | F3: М141БМОТН035 | G3: Проект VI Российско-китайская летняя школа по международным отношениям | H3: 0 | I3: Зачет | J3: 2016/2017 учебный год 1 модуль | L3: 0 | M3: 0 | N3: 1 | O3: 0 | T3: 0 | U3: Международные отношения | V3: =MATCH(D3,Отчет!$D:$D,0) -> 46
A4: 1690216180 | B4: 9 | C4: БМО151 | D4: 1181077809 | E4: Абдолова Садаф | F4: М151БМОТН063 | G4: Проект VI Российско-китайская летняя школа по международным отношениям | H4: 0 | I4: Зачет | J4: 2016/2017 учебный год 1 модуль | L4: 0 | M4: 0 | N4: 1 | O4: 1 | T4: 0 | U4: Международные отношения | V4: =MATCH(D4,Отчет!$D:$D,0) -> 56
A5: 1689615754 | B5: 10 | C5: БМО152 | D5: 1171524899 | E5: Смагина Александра Владимировна | F5: М151БМОТН044 | G5: Проект Международная конференция Всемирной ассоциации исследователей общественного мнения на тему "Survey Research and the Study of Social and Cultural Change" | H5: 0 | I5: Зачет | J5: 2016/2017 учебный год 1 модуль | L5: 0 | M5: 0 | N5: 1 | O5: 1 | T5: 0 | U5: Международные отношения | V5: =MATCH(D5,Отчет!$D:$D,0) -> 28
A6: 1567584525 | B6: 9 | C6: БМО152 | D6: 1181084770 | E6: Царенкова Татьяна | F6: М151БМОТН085 | G6: "Мягкая сила" и содействие международному развитию | H6: 3 | I6: Экзамен | J6: 2016/2017 учебный год 2 модуль | L6: 27 | M6: 3 | N6: 1 | O6: 1 | P6: 1546806085 | Q6: 2098 | S6: stChoosen | T6: 0 | U6: Международные отношения | V6: =MATCH(D6,Отчет!$D:$D,0) -> 43
A7: 1567584387 | B7: 10 | C7: БМО152 | D7: 1171524480 | E7: Купцов Александр Владимирович | F7: М151БМОТН028 | G7: "Мягкая сила" и содействие международному развитию | H7: 3 | I7: Экзамен | J7: 2016/2017 учебный год 2 модуль | L7: 30 | M7: 3 | N7: 1 | O7: 1 | P7: 1546806085 | Q7: 2098 | S7: stChoosen | T7: 0 | U7: Международные отношения | V7: =MATCH(D7,Отчет!$D:$D,0) -> 31
A8: 1567584491 | B8: 8 | C8: БМО152 | D8: 1181077833 | E8: Томчук Виктория Викторовна | F8: М151БМОТН068 | G8: "Мягкая сила" и содействие международному развитию | H8: 3 | I8: Экзамен | J8: 2016/2017 учебный год 2 модуль | L8: 24 | M8: 3 | N8: 1 | O8: 1 | P8: 1546806085 | Q8: 2098 | S8: stChoosen | T8: 0 | U8: Международные отношения | V8: =MATCH(D8,Отчет!$D:$D,0) -> 45
A9: 1567584513 | B9: 8 | C9: БМО152 | D9: 1181077931 | E9: Хромова Альбина Олеговна | F9: М151БМОТН070 | G9: "Мягкая сила" и содействие международному развитию | H9: 3 | I9: Экзамен | J9: 2016/2017 учебный год 2 модуль | L9: 24 | M9: 3 | N9: 1 | O9: 1 | P9: 1546806085 | Q9: 2098 | S9: stChoosen | T9: 0 | U9: Международные отношения | V9: =MATCH(D9,Отчет!$D:$D,0) -> 58
A10: 1567584535 | B10: 6 | C10: БМО152 | D10: 1181078125 | E10: Черезов Евгений Сергеевич | F10: М151БМОТН061 | G10: "Мягкая сила" и содействие международному развитию | H10: 3 | I10: Экзамен | J10: 2016/2017 учебный год 2 модуль | L10: 18 | M10: 3 | N10: 1 | O10: 1 | P10: 1546806085 | Q10: 2098 | S10: stChoosen | T10: 0 | U10: Международные отношения | V10: =MATCH(D10,Отчет!$D:$D,0) -> 69
A11: 1567584362 | B11: 9 | C11: БМО151 | D11: 1181078173 | E11: Игаз Роман | F11: М151БМОТН056 | G11: "Мягкая сила" и содействие международному развитию | H11: 3 | I11: Экзамен | J11: 2016/2017 учебный год 2 модуль | L11: 27 | M11: 3 | N11: 1 | O11: 1 | P11: 1546806085 | Q11: 2098 | S11: stChoosen | T11: 0 | U11: Международные отношения | V11: =MATCH(D11,Отчет!$D:$D,0) -> 59
A12: 1567584275 | B12: 8 | C12: БМО151 | D12: 1171526035 | E12: Галимова Алина Ленаровна | F12: М151БМОТН009 | G12: "Мягкая сила" и содействие международному развитию | H12: 3 | I12: Экзамен | J12: 2016/2017 учебный год 2 модуль | L12: 24 | M12: 3 | N12: 1 | O12: 1 | P12: 1546806085 | Q12: 2098 | S12: stChoosen | T12: 0 | U12: Международные отношения | V12: =MATCH(D12,Отчет!$D:$D,0) -> 23
A13: 1567584301 | B13: 9 | C13: БМО151 | D13: 1171526099 | E13: Горшенина Анастасия Сергеевна | F13: М151БМОТН012 | G13: "Мягкая сила" и содействие международному развитию | H13: 3 | I13: Экзамен | J13: 2016/2017 учебный год 2 модуль | L13: 27 | M13: 3 | N13: 1 | O13: 1 | P13: 1546806085 | Q13: 2098 | S13: stChoosen | T13: 0 | U13: Международные отношения | V13: =MATCH(D13,Отчет!$D:$D,0) -> 18
A14: 1567584579 | B14: 10 | C14: БМО152 | D14: 1171526131 | E14: Юхим Инна Михайловна | F14: М151БМОТН053 | G14: "Мягкая сила" и содействие международному развитию | H14: 3 | I14: Экзамен | J14: 2016/2017 учебный год 2 модуль | L14: 30 | M14: 3 | N14: 1 | O14: 1 | P14: 1546806085 | Q14: 2098 | S14: stChoosen | T14: 0 | U14: Международные отношения | V14: =MATCH(D14,Отчет!$D:$D,0) -> 17
A15: 1567584326 | B15: 7 | C15: БМО151 | D15: 1171525582 | E15: Елизарова Анастасия Константиновна | F15: М151БМОТН016 | G15: "Мягкая сила" и содействие международному развитию | H15: 3 | I15: Экзамен | J15: 2016/2017 учебный год 2 модуль | L15: 21 | M15: 3 | N15: 1 | O15: 0 | P15: 1546806085 | Q15: 2098 | S15: stChoosen | T15: 0 | U15: Международные отношения | V15: =MATCH(D15,Отчет!$D:$D,0) -> 67
A16: 1567584350 | B16: 8 | C16: БМО151 | D16: 1171525610 | E16: Зиборов Данил Васильевич | F16: М151БМОТН019 | G16: "Мягкая сила" и содействие международному развитию | H16: 3 | I16: Экзамен | J16: 2016/2017 учебный год 2 модуль | L16: 24 | M16: 3 | N16: 1 | O16: 0 | P16: 1546806085 | Q16: 2098 | S16: stChoosen | T16: 0 | U16: Международные отношения | V16: =MATCH(D16,Отчет!$D:$D,0) -> 50
A17: 1567584457 | B17: 10 | C17: БМО152 | D17: 1171525758 | E17: Рыбакова Мария Дмитриевна | F17: М151БМОТН039 | G17: "Мягкая сила" и содействие международному развитию | H17: 3 | I17: Экзамен | J17: 2016/2017 учебный год 2 модуль | L17: 30 | M17: 3 | N17: 1 | O17: 1 | P17: 1546806085 | Q17: 2098 | S17: stChoosen | T17: 0 | U17: Международные отношения | V17: =MATCH(D17,Отчет!$D:$D,0) -> 27
A18: 1567595319 | B18: 10 | C18: БМО151 | D18: 1171525326 | E18: Егорычева Екатерина Ильинична | F18: М151БМОТН015 | G18: "Мягкая сила" и содействие международному развитию | H18: 3 | I18: Экзамен | J18: 2016/2017 учебный год 2 модуль | L18: 30 | M18: 3 | N18: 1 | O18: 0 | P18: 1546806085 | Q18: 2098 | S18: stChoosen | T18: 0 | U18: Международные отношения | V18: =MATCH(D18,Отчет!$D:$D,0) -> 13
A19: 1567584247 | B19: 9 | C19: БМО151 | D19: 1171525422 | E19: Афанасьева Елена Михайловна | F19: М151БМОТН003 | G19: "Мягкая сила" и содействие международному развитию | H19: 3 | I19: Экзамен | J19: 2016/2017 учебный год 2 модуль | L19: 27 | M19: 3 | N19: 1 | O19: 0 | P19: 1546806085 | Q19: 2098 | S19: stChoosen | T19: 0 | U19: Международные отношения | V19: =MATCH(D19,Отчет!$D:$D,0) -> 37
A20: 1567595356 | B20: 6 | C20: БМО152 | D20: 1171525454 | E20: Самородова Алена Дмитриевна | F20: М151БМОТН040 | G20: "Мягкая сила" и содействие международному развитию | H20: 3 | I20: Экзамен | J20: 2016/2017 учебный год 2 модуль | L20: 18 | M20: 3 | N20: 1 | O20: 0 | P20: 1546806085 | Q20: 2098 | S20: stChoosen | T20: 0 | U20: Международные отношения | V20: =MATCH(D20,Отчет!$D:$D,0) -> 68
A21: 1652940325 | B21: 10 | C21: БМО151 | D21: 1171525486 | E21: Веденяпина Полина Павловна | F21: М151БМОТН006 | G21: "Мягкая сила" и содействие международному развитию | H21: 3 | I21: Экзамен | J21: 2016/2017 учебный год 2 модуль | L21: 30 | M21: 3 | N21: 1 | O21: 0 | P21: 1546806085 | Q21: 2098 | S21: stChoosen | T21: 0 | U21: Международные отношения | V21: =MATCH(D21,Отчет!$D:$D,0) -> 29
A22: 1567584547 | B22: 10 | C22: БМО152 | D22: 1171524867 | E22: Чкадуа Тимерлан Автандилович | F22: М151БМОТН049 | G22: "Мягкая сила" и содействие международному развитию | H22: 3 | I22: Экзамен | J22: 2016/2017 учебный год 2 модуль | L22: 30 | M22: 3 | N22: 1 | O22: 1 | P22: 1546806085 | Q22: 2098 | S22: stChoosen | T22: 0 | U22: Международные отношения | V22: =MATCH(D22,Отчет!$D:$D,0) -> 15
A23: 1567584467 | B23: 8 | C23: БМО152 | D23: 1171524899 | E23: Смагина Александра Владимировна | F23: М151БМОТН044 | G23: "Мягкая сила" и содействие международному развитию | H23: 3 | I23: Экзамен | J23: 2016/2017 учебный год 2 модуль | L23: 24 | M23: 3 | N23: 1 | O23: 1 | P23: 1546806085 | Q23: 2098 | S23: stChoosen | T23: 0 | U23: Международные отношения | V23: =MATCH(D23,Отчет!$D:$D,0) -> 28
A24: 1567584569 | B24: 9 | C24: БМО152 | D24: 1171524924 | E24: Эмануилова Руфь Беньяминовна | F24: М151БМОТН052 | G24: "Мягкая сила" и содействие международному развитию | H24: 3 | I24: Экзамен | J24: 2016/2017 учебный год 2 модуль | L24: 27 | M24: 3 | N24: 1 | O24: 1 | P24: 1546806085 | Q24: 2098 | S24: stChoosen | T24: 0 | U24: Международные отношения | V24: =MATCH(D24,Отчет!$D:$D,0) -> 25
A25: 1567595302 | B25: 9 | C25: БМО151 | D25: 1171524954 | E25: Аракелян Данил Эдуардович | F25: М151БМОТН002 | G25: "Мягкая сила" и содействие международному развитию | H25: 3 | I25: Экзамен | J25: 2016/2017 учебный год 2 модуль | L25: 27 | M25: 3 | N25: 1 | O25: 1 | P25: 1546806085 | Q25: 2098 | S25: stChoosen | T25: 0 | U25: Международные отношения | V25: =MATCH(D25,Отчет!$D:$D,0) -> 20
A26: 1567584227 | B26: 10 | C26: БМО151 | D26: 1171525116 | E26: Амиров Андрей Павлович | F26: М151БМОТН001 | G26: "Мягкая сила" и содействие международному развитию | H26: 3 | I26: Экзамен | J26: 2016/2017 учебный год 2 модуль | L26: 30 | M26: 3 | N26: 1 | O26: 0 | P26: 1546806085 | Q26: 2098 | S26: stChoosen | T26: 0 | U26: Международные отношения | V26: =MATCH(D26,Отчет!$D:$D,0) -> 22
A27: 1567584263 | B27: 9 | C27: БМО151 | D27: 1171525246 | E27: Внучкова Дарья Владимировна | F27: М151БМОТН008 | G27: "Мягкая сила" и содействие международному развитию | H27: 3 | I27: Экзамен | J27: 2016/2017 учебный год 2 модуль | L27: 27 | M27: 3 | N27: 1 | O27: 0 | P27: 1546806085 | Q27: 2098 | S27: stChoosen | T27: 0 | U27: Международные отношения | V27: =MATCH(D27,Отчет!$D:$D,0) -> 60
A28: 1567595337 | B28: 7 | C28: БМО151 | D28: 1171524611 | E28: Нечаева Александра Игоревна | F28: М151БМОТН034 | G28: "Мягкая сила" и содействие международному развитию | H28: 3 | I28: Экзамен | J28: 2016/2017 учебный год 2 модуль | L28: 21 | M28: 3 | N28: 1 | O28: 1 | P28: 1546806085 | Q28: 2098 | S28: stChoosen | T28: 0 | U28: Международные отношения | V28: =MATCH(D28,Отчет!$D:$D,0) -> 47
A29: 1567584314 | B29: 10 | C29: БМО151 | D29: 1171524635 | E29: Дьячкова Дарья Валерьевна | F29: М151БМОТН014 | G29: "Мягкая сила" и содействие международному развитию | H29: 3 | I29: Экзамен | J29: 2016/2017 учебный год 2 модуль | L29: 30 | M29: 3 | N29: 1 | O29: 1 | P29: 1546806085 | Q29: 2098 | S29: stChoosen | T29: 0 | U29: Международные отношения | V29: =MATCH(D29,Отчет!$D:$D,0) -> 14
A30: 1567584399 | B30: 10 | C30: БМО152 | D30: 1171524695 | E30: Ларионова Анна Александровна | F30: М151БМОТН029 | G30: "Мягкая сила" и содействие международному развитию | H30: 3 | I30: Экзамен | J30: 2016/2017 учебный год 2 модуль | L30: 30 | M30: 3 | N30: 1 | O30: 1 | P30: 1546806085 | Q30: 2098 | S30: stChoosen | T30: 0 | U30: Международные отношения | V30: =MATCH(D30,Отчет!$D:$D,0) -> 12
A31: 1567584411 | B31: 10 | C31: БМО152 | D31: 1171524719 | E31: Лыков Михаил Евгеньевич | F31: М151БМОТН032 | G31: "Мягкая сила" и содействие международному развитию | H31: 3 | I31: Экзамен | J31: 2016/2017 учебный год 2 модуль | L31: 30 | M31: 3 | N31: 1 | O31: 1 | P31: 1546806085 | Q31: 2098 | S31: stChoosen | T31: 0 | U31: Международные отношения | V31: =MATCH(D31,Отчет!$D:$D,0) -> 42
A32: 1567584433 | B32: 8 | C32: БМО152 | D32: 1171524843 | E32: Полунин Андрей Олегович | F32: М151БМОТН037 | G32: "Мягкая сила" и содействие международному развитию | H32: 3 | I32: Экзамен | J32: 2016/2017 учебный год 2 модуль | L32: 24 | M32: 3 | N32: 1 | O32: 1 | P32: 1546806085 | Q32: 2098 | S32: stChoosen | T32: 0 | U32: Международные отношения | V32: =MATCH(D32,Отчет!$D:$D,0) -> 74
A33: 1567584443 | B33: 8 | C33: БМО152 | D33: 498441909 | E33: Пульникова Полина Алексеевна | F33: М141БМОТН035 | G33: "Мягкая сила" и содействие международному развитию | H33: 3 | I33: Экзамен | J33: 2016/2017 учебный год 2 модуль | L33: 24 | M33: 3 | N33: 1 | O33: 0 | P33: 1546806085 | Q33: 2098 | S33: stChoosen | T33: 0 | U33: Международные отношения | V33: =MATCH(D33,Отчет!$D:$D,0) -> 46
A34: 1567584338 | B34: 8 | C34: БМО151 | D34: 1171524205 | E34: Ерохина Екатерина Андреевна | F34: М151БМОТН017 | G34: "Мягкая сила" и содействие международному развитию | H34: 3 | I34: Экзамен | J34: 2016/2017 учебный год 2 модуль | L34: 24 | M34: 3 | N34: 1 | O34: 1 | P34: 1546806085 | Q34: 2098 | S34: stChoosen | T34: 0 | U34: Международные отношения | V34: =MATCH(D34,Отчет!$D:$D,0) -> 41
A35: 1567584289 | B35: 8 | C35: БМО151 | D35: 1171524328 | E35: Горбунова Полина Андреевна | F35: М151БМОТН011 | G35: "Мягкая сила" и содействие международному развитию | H35: 3 | I35: Экзамен | J35: 2016/2017 учебный год 2 модуль | L35: 24 | M35: 3 | N35: 1 | O35: 1 | P35: 1546806085 | Q35: 2098 | S35: stChoosen | T35: 0 | U35: Международные отношения | V35: =MATCH(D35,Отчет!$D:$D,0) -> 40
A36: 1567584374 | B36: 7 | C36: БМО151 | D36: 1171524352 | E36: Калугина Мария Геннадьевна | F36: М151БМОТН021 | G36: "Мягкая сила" и содействие международному развитию | H36: 3 | I36: Экзамен | J36: 2016/2017 учебный год 2 модуль | L36: 21 | M36: 3 | N36: 1 | O36: 1 | P36: 1546806085 | Q36: 2098 | S36: stChoosen | T36: 0 | U36: Международные отношения | V36: =MATCH(D36,Отчет!$D:$D,0) -> 70
A37: 1567584481 | B37: 7 | C37: БМО151 | D37: 1181084838 | E37: Литвинюк Владислав | F37: М151БМОТН079 | G37: "Мягкая сила" и содействие международному развитию | H37: 3 | I37: Экзамен | J37: 2016/2017 учебный год 2 модуль | L37: 21 | M37: 3 | N37: 1 | O37: 1 | P37: 1546806085 | Q37: 2098 | S37: stChoosen | T37: 0 | U37: Международные отношения | V37: =MATCH(D37,Отчет!$D:$D,0) -> 66
A38: 1567447996 | B38: 5 | C38: БМО151 | D38: 1181078245 | E38: Ахонов Осман | F38: М151БМОТН055 | G38: Английский язык | H38: 0 | I38: Экзамен | J38: 2016/2017 учебный год 2 модуль | L38: 20 | M38: 4 | N38: 1 | O38: 1 | P38: 1546806085 | Q38: 2098 | R38: ikPassed | S38: stFacultative | T38: 0 | U38: Международные отношения | V38: =MATCH(D38,Отчет!$D:$D,0) -> 64
A39: 1567604280 | B39: 7 | C39: БМО152 | D39: 1171524719 | E39: Лыков Михаил Евгеньевич | F39: М151БМОТН032 | G39: Английский язык | H39: 4 | I39: Экзамен | J39: 2016/2017 учебный год 2 модуль | L39: 28 | M39: 4 | N39: 1 | O39: 1 | P39: 1546806085 | Q39: 2098 | S39: stFacultative | T39: 0 | U39: Международные отношения | V39: =MATCH(D39,Отчет!$D:$D,0) -> 42
A40: 1567448036 | B40: 8 | C40: БМО152 | D40: 1171524747 | E40: Кублашвили Анджела Гочевна | F40: М151БМОТН027 | G40: Английский язык | H40: 4 | I40: Экзамен | J40: 2016/2017 учебный год 2 модуль | L40: 32 | M40: 4 | N40: 1 | O40: 1 | P40: 1546806085 | Q40: 2098 | S40: stFacultative | T40: 0 | U40: Международные отношения | V40: =MATCH(D40,Отчет!$D:$D,0) -> 32
A41: 1567448077 | B41: 5 | C41: БМО152 | D41: 1171524779 | E41: Смирнова Анна Сергеевна | F41: М151БМОТН045 | G41: Английский язык | H41: 4 | I41: Экзамен | J41: 2016/2017 учебный год 2 модуль | L41: 20 | M41: 4 | N41: 1 | O41: 1 | P41: 1546806085 | Q41: 2098 | S41: stFacultative | T41: 0 | U41: Международные отношения | V41: =MATCH(D41,Отчет!$D:$D,0) -> 39
A42: 1567604304 | B42: 4 | C42: БМО152 | D42: 1171524843 | E42: Полунин Андрей Олегович | F42: М151БМОТН037 | G42: Английский язык | H42: 4 | I42: Экзамен | J42: 2016/2017 учебный год 2 модуль | L42: 16 | M42: 4 | N42: 1 | O42: 1 | P42: 1546806085 | Q42: 2098 | S42: stFacultative | T42: 0 | U42: Международные отношения | V42: =MATCH(D42,Отчет!$D:$D,0) -> 74
A43: 1567604311 | B43: 6 | C43: БМО152 | D43: 498441909 | E43: Пульникова Полина Алексеевна | F43: М141БМОТН035 | G43: Английский язык | H43: 4 | I43: Экзамен | J43: 2016/2017 учебный год 2 модуль | L43: 24 | M43: 4 | N43: 1 | O43: 0 | P43: 1546806085 | Q43: 2098 | S43: stFacultative | T43: 0 | U43: Международные отношения | V43: =MATCH(D43,Отчет!$D:$D,0) -> 46
A44: 1567448123 | B44: 6 | C44: БМО152 | D44: 1171524173 | E44: Шестеркин Максим Михайлович | F44: М151БМОТН050 | G44: Английский язык | H44: 4 | I44: Экзамен | J44: 2016/2017 учебный год 2 модуль | L44: 24 | M44: 4 | N44: 1 | O44: 1 | P44: 1546806085 | Q44: 2098 | S44: stFacultative | T44: 0 | U44: Международные отношения | V44: =MATCH(D44,Отчет!$D:$D,0) -> 57
A45: 1567604191 | B45: 8 | C45: БМО151 | D45: 1171524205 | E45: Ерохина Екатерина Андреевна | F45: М151БМОТН017 | G45: Английский язык | H45: 4 | I45: Экзамен | J45: 2016/2017 учебный год 2 модуль | L45: 32 | M45: 4 | N45: 1 | O45: 1 | P45: 1546806085 | Q45: 2098 | S45: stFacultative | T45: 0 | U45: Международные отношения | V45: =MATCH(D45,Отчет!$D:$D,0) -> 41
A46: 1567604147 | B46: 6 | C46: БМО151 | D46: 1171524328 | E46: Горбунова Полина Андреевна | F46: М151БМОТН011 | G46: Английский язык | H46: 4 | I46: Экзамен | J46: 2016/2017 учебный год 2 модуль | L46: 24 | M46: 4 | N46: 1 | O46: 1 | P46: 1546806085 | Q46: 2098 | S46: stFacultative | T46: 0 | U46: Международные отношения | V46: =MATCH(D46,Отчет!$D:$D,0) -> 40
A47: 1567604222 | B47: 6 | C47: БМО151 | D47: 1171524352 | E47: Калугина Мария Геннадьевна | F47: М151БМОТН021 | G47: Английский язык | H47: 4 | I47: Экзамен | J47: 2016/2017 учебный год 2 модуль | L47: 24 | M47: 4 | N47: 1 | O47: 1 | P47: 1546806085 | Q47: 2098 | S47: stFacultative | T47: 0 | U47: Международные отношения | V47: =MATCH(D47,Отчет!$D:$D,0) -> 70
A48: 1567604262 | B48: 5 | C48: БМО152 | D48: 1171524480 | E48: Купцов Александр Владимирович | F48: М151БМОТН028 | G48: Английский язык | H48: 4 | I48: Экзамен | J48: 2016/2017 учебный год 2 модуль | L48: 20 | M48: 4 | N48: 1 | O48: 1 | P48: 1546806085 | Q48: 2098 | S48: stFacultative | T48: 0 | U48: Международные отношения | V48: =MATCH(D48,Отчет!$D:$D,0) -> 31
A49: 1567448008 | B49: 7 | C49: БМО151 | D49: 1171524504 | E49: Глиба Виктория Ивановна | F49: М151БМОТН010 | G49: Английский язык | H49: 4 | I49: Экзамен | J49: 2016/2017 учебный год 2 модуль | L49: 28 | M49: 4 | N49: 1 | O49: 1 | P49: 1546806085 | Q49: 2098 | S49: stFacultative | T49: 0 | U49: Международные отношения | V49: =MATCH(D49,Отчет!$D:$D,0) -> 33
A50: 1567448068 | B50: 8 | C50: БМО152 | D50: 1171524528 | E50: Светличный Владислав Александрович | F50: М151БМОТН041 | G50: Английский язык | H50: 4 | I50: Экзамен | J50: 2016/2017 учебный год 2 модуль | L50: 32 | M50: 4 | N50: 1 | O50: 1 | P50: 1546806085 | Q50: 2098 | S50: stFacultative | T50: 0 | U50: Международные отношения | V50: =MATCH(D50,Отчет!$D:$D,0) -> 19
A51: 1567448012 | B51: 6 | C51: БМО151 | D51: 1171525666 | E51: Дельянов Василий Георгиевич | F51: М151БМОТН013 | G51: Английский язык | H51: 4 | I51: Экзамен | J51: 2016/2017 учебный год 2 модуль | L51: 24 | M51: 4 | N51: 1 | O51: 0 | P51: 1546806085 | Q51: 2098 | S51: stFacultative | T51: 0 | U51: Международные отношения | V51: =MATCH(D51,Отчет!$D:$D,0) -> 51
A52: 1567448042 | B52: 7 | C52: БМО152 | D52: 1171525694 | E52: Луизидис Елизавета Милтиадисовна | F52: М151БМОТН030 | G52: Английский язык | H52: 4 | I52: Экзамен | J52: 2016/2017 учебный год 2 модуль | L52: 28 | M52: 4 | N52: 1 | O52: 0 | P52: 1546806085 | Q52: 2098 | S52: stFacultative | T52: 0 | U52: Международные отношения | V52: =MATCH(D52,Отчет!$D:$D,0) -> 49
A53: 1567604317 | B53: 7 | C53: БМО152 | D53: 1171525758 | E53: Рыбакова Мария Дмитриевна | F53: М151БМОТН039 | G53: Английский язык | H53: 4 | I53: Экзамен | J53: 2016/2017 учебный год 2 модуль | L53: 28 | M53: 4 | N53: 1 | O53: 1 | P53: 1546806085 | Q53: 2098 | S53: stFacultative | T53: 0 | U53: Международные отношения | V53: =MATCH(D53,Отчет!$D:$D,0) -> 27
A54: 1567448081 | B54: 8 | C54: БМО152 | D54: 1171525939 | E54: Эбаноидзе Илья Игоревич | F54: М151БМОТН051 | G54: Английский язык | H54: 4 | I54: Экзамен | J54: 2016/2017 учебный год 2 модуль | L54: 32 | M54: 4 | N54: 1 | O54: 1 | P54: 1546806085 | Q54: 2098 | S54: stFacultative | T54: 0 | U54: Международные отношения | V54: =MATCH(D54,Отчет!$D:$D,0) -> 44
A55: 1567448024 | B55: 8 | C55: БМО151 | D55: 1171525971 | E55: Касай Мария Александровна | F55: М151БМОТН023 | G55: Английский язык | H55: 4 | I55: Экзамен | J55: 2016/2017 учебный год 2 модуль | L55: 32 | M55: 4 | N55: 1 | O55: 1 | P55: 1546806085 | Q55: 2098 | S55: stFacultative | T55: 0 | U55: Международные отношения | V55: =MATCH(D55,Отчет!$D:$D,0) -> 35
A56: 1567448004 | B56: 7 | C56: БМО151 | D56: 1171525270 | E56: Викторова Арина Владимировна | F56: М151БМОТН007 | G56: Английский язык | H56: 4 | I56: Экзамен | J56: 2016/2017 учебный год 2 модуль | L56: 28 | M56: 4 | N56: 1 | O56: 0 | P56: 1546806085 | Q56: 2098 | S56: stFacultative | T56: 0 | U56: Международные отношения | V56: =MATCH(D56,Отчет!$D:$D,0) -> 52
A57: 1567448111 | B57: 7 | C57: БМО152 | D57: 1171525294 | E57: Федюшкина Екатерина Александровна | F57: М151БМОТН048 | G57: Английский язык | H57: 4 | I57: Экзамен | J57: 2016/2017 учебный год 2 модуль | L57: 28 | M57: 4 | N57: 1 | O57: 0 | P57: 1546806085 | Q57: 2098 | S57: stFacultative | T57: 0 | U57: Международные отношения | V57: =MATCH(D57,Отчет!$D:$D,0) -> 63
A58: 1567604176 | B58: 9 | C58: БМО151 | D58: 1171525326 | E58: Егорычева Екатерина Ильинична | F58: М151БМОТН015 | G58: Английский язык | H58: 4 | I58: Экзамен | J58: 2016/2017 учебный год 2 модуль | L58: 36 | M58: 4 | N58: 1 | O58: 0 | P58: 1546806085 | Q58: 2098 | S58: stFacultative | T58: 0 | U58: Международные отношения | V58: =MATCH(D58,Отчет!$D:$D,0) -> 13
A59: 1567604372 | B59: 6 | C59: БМО151 | D59: 1171525358 | E59: Сухобаевский Алексей Игоревич | F59: М151БМОТН047 | G59: Английский язык | H59: 4 | I59: Экзамен | J59: 2016/2017 учебный год 2 модуль | L59: 24 | M59: 4 | N59: 1 | O59: 0 | P59: 1546806085 | Q59: 2098 | S59: stFacultative | T59: 0 | U59: Международные отношения | V59: =MATCH(D59,Отчет!$D:$D,0) -> 61
A60: 1567604106 | B60: 8 | C60: БМО151 | D60: 1171525422 | E60: Афанасьева Елена Михайловна | F60: М151БМОТН003 | G60: Английский язык | H60: 4 | I60: Экзамен | J60: 2016/2017 учебный год 2 модуль | L60: 32 | M60: 4 | N60: 1 | O60: 0 | P60: 1546806085 | Q60: 2098 | S60: stFacultative | T60: 0 | U60: Международные отношения | V60: =MATCH(D60,Отчет!$D:$D,0) -> 37
A61: 1567604322 | B61: 6 | C61: БМО152 | D61: 1171525454 | E61: Самородова Алена Дмитриевна | F61: М151БМОТН040 | G61: Английский язык | H61: 4 | I61: Экзамен | J61: 2016/2017 учебный год 2 модуль | L61: 24 | M61: 4 | N61: 1 | O61: 0 | P61: 1546806085 | Q61: 2098 | S61: stFacultative | T61: 0 | U61: Международные отношения | V61: =MATCH(D61,Отчет!$D:$D,0) -> 68
A62: 1567604123 | B62: 9 | C62: БМО151 | D62: 1171525486 | E62: Веденяпина Полина Павловна | F62: М151БМОТН006 | G62: Английский язык | H62: 4 | I62: Экзамен | J62: 2016/2017 учебный год 2 модуль | L62: 36 | M62: 4 | N62: 1 | O62: 0 | P62: 1546806085 | Q62: 2098 | S62: stFacultative | T62: 0 | U62: Международные отношения | V62: =MATCH(D62,Отчет!$D:$D,0) -> 29
A63: 1567604296 | B63: 7 | C63: БМО152 | D63: 1171525550 | E63: Платонова Анастасия Ивановна | F63: М151БМОТН036 | G63: Английский язык | H63: 4 | I63: Экзамен | J63: 2016/2017 учебный год 2 модуль | L63: 28 | M63: 4 | N63: 1 | O63: 0 | P63: 1546806085 | Q63: 2098 | S63: stFacultative | T63: 0 | U63: Международные отношения | V63: =MATCH(D63,Отчет!$D:$D,0) -> 62
A64: 1567604419 | B64: 8 | C64: БМО152 | D64: 1171524867 | E64: Чкадуа Тимерлан Автандилович | F64: М151БМОТН049 | G64: Английский язык | H64: 4 | I64: Экзамен | J64: 2016/2017 учебный год 2 модуль | L64: 32 | M64: 4 | N64: 1 | O64: 1 | P64: 1546806085 | Q64: 2098 | S64: stFacultative | T64: 0 | U64: Международные отношения | V64: =MATCH(D64,Отчет!$D:$D,0) -> 15
A65: 1567604329 | B65: 8 | C65: БМО152 | D65: 1171524899 | E65: Смагина Александра Владимировна | F65: М151БМОТН044 | G65: Английский язык | H65: 4 | I65: Экзамен | J65: 2016/2017 учебный год 2 модуль | L65: 32 | M65: 4 | N65: 1 | O65: 1 | P65: 1546806085 | Q65: 2098 | S65: stFacultative | T65: 0 | U65: Международные отношения | V65: =MATCH(D65,Отчет!$D:$D,0) -> 28
A66: 1567604448 | B66: 9 | C66: БМО152 | D66: 1171524924 | E66: Эмануилова Руфь Беньяминовна | F66: М151БМОТН052 | G66: Английский язык | H66: 4 | I66: Экзамен | J66: 2016/2017 учебный год 2 модуль | L66: 36 | M66: 4 | N66: 1 | O66: 1 | P66: 1546806085 | Q66: 2098 | S66: stFacultative | T66: 0 | U66: Международные отношения | V66: =MATCH(D66,Отчет!$D:$D,0) -> 25
A67: 1567604096 | B67: 7 | C67: БМО151 | D67: 1171524954 | E67: Аракелян Данил Эдуардович | F67: М151БМОТН002 | G67: Английский язык | H67: 4 | I67: Экзамен | J67: 2016/2017 учебный год 2 модуль | L67: 28 | M67: 4 | N67: 1 | O67: 1 | P67: 1546806085 | Q67: 2098 | S67: stFacultative | T67: 0 | U67: Международные отношения | V67: =MATCH(D67,Отчет!$D:$D,0) -> 20
A68: 1567448073 | B68: 8 | C68: БМО152 | D68: 1171524989 | E68: Семенюк Татьяна Олеговна | F68: М151БМОТН042 | G68: Английский язык | H68: 4 | I68: Экзамен | J68: 2016/2017 учебный год 2 модуль | L68: 32 | M68: 4 | N68: 1 | O68: 1 | P68: 1546806085 | Q68: 2098 | S68: stFacultative | T68: 0 | U68: Международные отношения | V68: =MATCH(D68,Отчет!$D:$D,0) -> 21
A69: 1567448000 | B69: 7 | C69: БМО151 | D69: 1171525030 | E69: Батманова Анастасия Олеговна | F69: М151БМОТН005 | G69: Английский язык | H69: 4 | I69: Экзамен | J69: 2016/2017 учебный год 2 модуль | L69: 28 | M69: 4 | N69: 1 | O69: 1 | P69: 1546806085 | Q69: 2098 | S69: stFacultative | T69: 0 | U69: Международные отношения | V69: =MATCH(D69,Отчет!$D:$D,0) -> 48
A70: 1567604087 | B70: 7 | C70: БМО151 | D70: 1171525116 | E70: Амиров Андрей Павлович | F70: М151БМОТН001 | G70: Английский язык | H70: 4 | I70: Экзамен | J70: 2016/2017 учебный год 2 модуль | L70: 28 | M70: 4 | N70: 1 | O70: 0 | P70: 1546806085 | Q70: 2098 | S70: stFacultative | T70: 0 | U70: Международные отношения | V70: =MATCH(D70,Отчет!$D:$D,0) -> 22
A71: 1567604132 | B71: 6 | C71: БМО151 | D71: 1171525246 | E71: Внучкова Дарья Владимировна | F71: М151БМОТН008 | G71: Английский язык | H71: 4 | I71: Экзамен | J71: 2016/2017 учебный год 2 модуль | L71: 24 | M71: 4 | N71: 1 | O71: 0 | P71: 1546806085 | Q71: 2098 | S71: stFacultative | T71: 0 | U71: Международные отношения | V71: =MATCH(D71,Отчет!$D:$D,0) -> 60
A72: 1567448055 | B72: 8 | C72: БМО152 | D72: 1171524579 | E72: Нигмаева Дина Айратовна | F72: М151БМОТН035 | G72: Английский язык | H72: 4 | I72: Экзамен | J72: 2016/2017 учебный год 2 модуль | L72: 32 | M72: 4 | N72: 1 | O72: 1 | P72: 1546806085 | Q72: 2098 | S72: stFacultative | T72: 0 | U72: Международные отношения | V72: =MATCH(D72,Отчет!$D:$D,0) -> 34
A73: 1567604230 | B73: 7 | C73: БМО151 | D73: 1171524611 | E73: Нечаева Александра Игоревна | F73: М151БМОТН034 | G73: Английский язык | H73: 4 | I73: Экзамен | J73: 2016/2017 учебный год 2 модуль | L73: 28 | M73: 4 | N73: 1 | O73: 1 | P73: 1546806085 | Q73: 2098 | S73: stFacultative | T73: 0 | U73: Международные отношения | V73: =MATCH(D73,Отчет!$D:$D,0) -> 47
A74: 1567604169 | B74: 9 | C74: БМО151 | D74: 1171524635 | E74: Дьячкова Дарья Валерьевна | F74: М151БМОТН014 | G74: Английский язык | H74: 4 | I74: Экзамен | J74: 2016/2017 учебный год 2 модуль | L74: 36 | M74: 4 | N74: 1 | O74: 1 | P74: 1546806085 | Q74: 2098 | S74: stFacultative | T74: 0 | U74: Международные отношения | V74: =MATCH(D74,Отчет!$D:$D,0) -> 14
A75: 1567604269 | B75: 9 | C75: БМО152 | D75: 1171524695 | E75: Ларионова Анна Александровна | F75: М151БМОТН029 | G75: Английский язык | H75: 4 | I75: Экзамен | J75: 2016/2017 учебный год 2 модуль | L75: 36 | M75: 4 | N75: 1 | O75: 1 | P75: 1546806085 | Q75: 2098 | S75: stFacultative | T75: 0 | U75: Международные отношения | V75: =MATCH(D75,Отчет!$D:$D,0) -> 12
A76: 1652994331 | B76: 5 | C76: БМО152 | D76: 1646278328 | E76: Ткачук Андрей Александрович | F76: 116-24/12-143 | G76: Английский язык | H76: 4 | I76: Экзамен | J76: 2016/2017 учебный год 2 модуль | L76: 20 | M76: 4 | N76: 1 | O76: 0 | P76: 1546806085 | Q76: 2098 | R76: ikPassed | S76: stFacultative | T76: 0 | U76: Международные отношения | V76: =MATCH(D76,Отчет!$D:$D,0) -> 76
A77: 1567448051 | B77: 8 | C77: БМО152 | D77: 1181078293 | E77: Навратилова Яна | F77: М151БМОТН057 | G77: Английский язык | H77: 4 | I77: Экзамен | J77: 2016/2017 учебный год 2 модуль | L77: 32 | M77: 4 | N77: 1 | O77: 1 | P77: 1546806085 | Q77: 2098 | S77: stFacultative | T77: 0 | U77: Международные отношения | V77: =MATCH(D77,Отчет!$D:$D,0) -> 55
A78: 1567604405 | B78: 7 | C78: БМО152 | D78: 1181084770 | E78: Царенкова Татьяна | F78: М151БМОТН085 | G78: Английский язык | H78: 4 | I78: Экзамен | J78: 2016/2017 учебный год 2 модуль | L78: 28 | M78: 4 | N78: 1 | O78: 1 | P78: 1546806085 | Q78: 2098 | S78: stFacultative | T78: 0 | U78: Международные отношения | V78: =MATCH(D78,Отчет!$D:$D,0) -> 43
A79: 1567448119 | B79: 7 | C79: БМО152 | D79: 1181084821 | E79: Шестак Сергей Игоревич | F79: М151БМОТН086 | G79: Английский язык | H79: 4 | I79: Экзамен | J79: 2016/2017 учебный год 2 модуль | L79: 28 | M79: 4 | N79: 1 | O79: 1 | P79: 1546806085 | Q79: 2098 | S79: stFacultative | T79: 0 | U79: Международные отношения | V79: =MATCH(D79,Отчет!$D:$D,0) -> 53
A80: 1567604342 | B80: 7 | C80: БМО151 | D80: 1181084838 | E80: Литвинюк Владислав | F80: М151БМОТН079 | G80: Английский язык | H80: 4 | I80: Экзамен | J80: 2016/2017 учебный год 2 модуль | L80: 28 | M80: 4 | N80: 1 | O80: 1 | P80: 1546806085 | Q80: 2098 | S80: stFacultative | T80: 0 | U80: Международные отношения | V80: =MATCH(D80,Отчет!$D:$D,0) -> 66
A81: 1567448090 | B81: 6 | C81: БМО151 | D81: 1181084855 | E81: Еремеев Иван | F81: М151БМОТН078 | G81: Английский язык | H81: 4 | I81: Экзамен | J81: 2016/2017 учебный год 2 модуль | L81: 24 | M81: 4 | N81: 1 | O81: 1 | P81: 1546806085 | Q81: 2098 | S81: stFacultative | T81: 0 | U81: Международные отношения | V81: =MATCH(D81,Отчет!$D:$D,0) -> 75
A82: 1567448103 | B82: 5 | C82: БМО152 | D82: 1181084889 | E82: Насырходжаев Иброхимбек Давронович | F82: М151БМОТН075 | G82: Английский язык | H82: 4 | I82: Экзамен | J82: 2016/2017 учебный год 2 модуль | L82: 20 | M82: 4 | N82: 1 | O82: 1 | P82: 1546806085 | Q82: 2098 | S82: stFacultative | T82: 0 | U82: Международные отношения | V82: =MATCH(D82,Отчет!$D:$D,0) -> 73
A83: 1567604350 | B83: 7 | C83: БМО151 | D83: 1190224994 | E83: Орлов Илья Александрович | F83: М151БМОТН074 | G83: Английский язык | H83: 4 | I83: Экзамен | J83: 2016/2017 учебный год 2 модуль | L83: 28 | M83: 4 | N83: 1 | O83: 0 | P83: 1546806085 | Q83: 2098 | S83: stFacultative | T83: 0 | U83: Международные отношения | V83: =MATCH(D83,Отчет!$D:$D,0) -> 30
A84: 1567448085 | B84: 7 | C84: БМО152 | D84: 1204015568 | E84: Брозовская Влада | F84: М151БМОТН077 | G84: Английский язык | H84: 4 | I84: Экзамен | J84: 2016/2017 учебный год 2 модуль | L84: 28 | M84: 4 | N84: 1 | O84: 1 | P84: 1546806085 | Q84: 2098 | S84: stFacultative | T84: 0 | U84: Международные отношения | V84: =MATCH(D84,Отчет!$D:$D,0) -> 54
A85: 1567448094 | B85: 4 | C85: БМО151 | D85: 1256428992 | E85: Ибрагим Дианна Джавдатовна | F85: М151БМОТН087 | G85: Английский язык | H85: 4 | I85: Экзамен | J85: 2016/2017 учебный год 2 модуль | L85: 16 | M85: 4 | N85: 1 | O85: 1 | P85: 1546806085 | Q85: 2098 | S85: stFacultative | T85: 0 | U85: Международные отношения | V85: =MATCH(D85,Отчет!$D:$D,0) -> 72
A86: 1567448032 | B86: 8 | C86: БМО151 | D86: 1181077905 | E86: Тулум Андрей Сергеевич | F86: М151БМОТН069 | G86: Английский язык | H86: 4 | I86: Экзамен | J86: 2016/2017 учебный год 2 модуль | L86: 32 | M86: 4 | N86: 1 | O86: 1 | P86: 1546806085 | Q86: 2098 | S86: stFacultative | T86: 0 | U86: Международные отношения | V86: =MATCH(D86,Отчет!$D:$D,0) -> 24
A87: 1567604399 | B87: 8 | C87: БМО152 | D87: 1181077931 | E87: Хромова Альбина Олеговна | F87: М151БМОТН070 | G87: Английский язык | H87: 4 | I87: Экзамен | J87: 2016/2017 учебный год 2 модуль | L87: 32 | M87: 4 | N87: 1 | O87: 1 | P87: 1546806085 | Q87: 2098 | S87: stFacultative | T87: 0 | U87: Международные отношения | V87: =MATCH(D87,Отчет!$D:$D,0) -> 58
A88: 1567604441 | B88: 4 | C88: БМО152 | D88: 1181078007 | E88: Шевченко Елизавета Андреевна | F88: М151БМОТН072 | G88: Английский язык | H88: 4 | I88: Экзамен | J88: 2016/2017 учебный год 2 модуль | L88: 16 | M88: 4 | N88: 1 | O88: 1 | P88: 1546806085 | Q88: 2098 | S88: stFacultative | T88: 0 | U88: Международные отношения | V88: =MATCH(D88,Отчет!$D:$D,0) -> 71
A89: 1567604412 | B89: 5 | C89: БМО152 | D89: 1181078125 | E89: Черезов Евгений Сергеевич | F89: М151БМОТН061 | G89: Английский язык | H89: 4 | I89: Экзамен | J89: 2016/2017 учебный год 2 модуль | L89: 20 | M89: 4 | N89: 1 | O89: 1 | P89: 1546806085 | Q89: 2098 | S89: stFacultative | T89: 0 | U89: Международные отношения | V89: =MATCH(D89,Отчет!$D:$D,0) -> 69
A90: 1567604216 | B90: 7 | C90: БМО151 | D90: 1181078173 | E90: Игаз Роман | F90: М151БМОТН056 | G90: Английский язык | H90: 4 | I90: Экзамен | J90: 2016/2017 учебный год 2 модуль | L90: 28 | M90: 4 | N90: 1 | O90: 1 | P90: 1546806085 | Q90: 2098 | S90: stFacultative | T90: 0 | U90: Международные отношения | V90: =MATCH(D90,Отчет!$D:$D,0) -> 59
A91: 1567448115 | B91: 8 | C91: БМО151 | D91: 1181078221 | E91: Шварц Даниэль | F91: М151БМОТН062 | G91: Английский язык | H91: 4 | I91: Экзамен | J91: 2016/2017 учебный год 2 модуль | L91: 32 | M91: 4 | N91: 1 | O91: 1 | P91: 1546806085 | Q91: 2098 | S91: stFacultative | T91: 0 | U91: Международные отношения | V91: =MATCH(D91,Отчет!$D:$D,0) -> 38
A92: 1567448020 | B92: 9 | C92: БМО151 | D92: 1171526003 | E92: Каменькович Надежда Евгеньевна | F92: М151БМОТН022 | G92: Английский язык | H92: 4 | I92: Экзамен | J92: 2016/2017 учебный год 2 модуль | L92: 36 | M92: 4 | N92: 1 | O92: 1 | P92: 1546806085 | Q92: 2098 | S92: stFacultative | T92: 0 | U92: Международные отношения | V92: =MATCH(D92,Отчет!$D:$D,0) -> 26
A93: 1567604138 | B93: 8 | C93: БМО151 | D93: 1171526035 | E93: Галимова Алина Ленаровна | F93: М151БМОТН009 | G93: Английский язык | H93: 4 | I93: Экзамен | J93: 2016/2017 учебный год 2 модуль | L93: 32 | M93: 4 | N93: 1 | O93: 1 | P93: 1546806085 | Q93: 2098 | S93: stFacultative | T93: 0 | U93: Международные отношения | V93: =MATCH(D93,Отчет!$D:$D,0) -> 23
A94: 1567448046 | B94: 9 | C94: БМО152 | D94: 1171526067 | E94: Лукашенко Анна Дмитриевна | F94: М151БМОТН031 | G94: Английский язык | H94: 4 | I94: Экзамен | J94: 2016/2017 учебный год 2 модуль | L94: 36 | M94: 4 | N94: 1 | O94: 1 | P94: 1546806085 | Q94: 2098 | S94: stFacultative | T94: 0 | U94: Международные отношения | V94: =MATCH(D94,Отчет!$D:$D,0) -> 16
A95: 1567604155 | B95: 9 | C95: БМО151 | D95: 1171526099 | E95: Горшенина Анастасия Сергеевна | F95: М151БМОТН012 | G95: Английский язык | H95: 4 | I95: Экзамен | J95: 2016/2017 учебный год 2 модуль | L95: 36 | M95: 4 | N95: 1 | O95: 1 | P95: 1546806085 | Q95: 2098 | S95: stFacultative | T95: 0 | U95: Международные отношения | V95: =MATCH(D95,Отчет!$D:$D,0) -> 18
A96: 1567604460 | B96: 9 | C96: БМО152 | D96: 1171526131 | E96: Юхим Инна Михайловна | F96: М151БМОТН053 | G96: Английский язык | H96: 4 | I96: Экзамен | J96: 2016/2017 учебный год 2 модуль | L96: 36 | M96: 4 | N96: 1 | O96: 1 | P96: 1546806085 | Q96: 2098 | S96: stFacultative | T96: 0 | U96: Международные отношения | V96: =MATCH(D96,Отчет!$D:$D,0) -> 17
A97: 1567604115 | B97: 7 | C97: БМО151 | D97: 1171526163 | E97: Баранова Анастасия Сергеевна | F97: М151БМОТН004 | G97: Английский язык | H97: 4 | I97: Экзамен | J97: 2016/2017 учебный год 2 модуль | L97: 28 | M97: 4 | N97: 1 | O97: 1 | P97: 1546806085 | Q97: 2098 | S97: stFacultative | T97: 0 | U97: Международные отношения | V97: =MATCH(D97,Отчет!$D:$D,0) -> 36
A98: 1679232280 | B98: 5 | C98: БМО151 | D98: 1181077809 | E98: Абдолова Садаф | F98: М151БМОТН063 | G98: Английский язык | H98: 4 | I98: Экзамен | J98: 2016/2017 учебный год 2 модуль | L98: 20 | M98: 4 | N98: 1 | O98: 1 | P98: 1546806085 | Q98: 2098 | S98: stFacultative | T98: 0 | U98: Международные отношения | V98: =MATCH(D98,Отчет!$D:$D,0) -> 56
A99: 1567604378 | B99: 6 | C99: БМО152 | D99: 1181077833 | E99: Томчук Виктория Викторовна | F99: М151БМОТН068 | G99: Английский язык | H99: 4 | I99: Экзамен | J99: 2016/2017 учебный год 2 модуль | L99: 24 | M99: 4 | N99: 1 | O99: 1 | P99: 1546806085 | Q99: 2098 | S99: stFacultative | T99: 0 | U99: Международные отношения | V99: =MATCH(D99,Отчет!$D:$D,0) -> 45
A100: 1567604185 | B100: 8 | C100: БМО151 | D100: 1171525582 | E100: Елизарова Анастасия Константиновна | F100: М151БМОТН016 | G100: Английский язык | H100: 4 | I100: Экзамен | J100: 2016/2017 учебный год 2 модуль | L100: 32 | M100: 4 | N100: 1 | O100: 0 | P100: 1546806085 | Q100: 2098 | S100: stFacultative | T100: 0 | U100: Международные отношения | V100: =MATCH(D100,Отчет!$D:$D,0) -> 67
A101: 1567604199 | B101: 7 | C101: БМО151 | D101: 1171525610 | E101: Зиборов Данил Васильевич | F101: М151БМОТН019 | G101: Английский язык | H101: 4 | I101: Экзамен | J101: 2016/2017 учебный год 2 модуль | L101: 28 | M101: 4 | N101: 1 | O101: 0 | P101: 1546806085 | Q101: 2098 | S101: stFacultative | T101: 0 | U101: Международные отношения | V101: =MATCH(D101,Отчет!$D:$D,0) -> 50
A102: 1567448016 | B102: 6 | C102: БМО151 | D102: 1171525638 | E102: Журавлева Анастасия Владимировна | F102: М151БМОТН018 | G102: Английский язык | H102: 4 | I102: Экзамен | J102: 2016/2017 учебный год 2 модуль | L102: 0 | M102: 4 | N102: 1 | O102: 0 | P102: 1546806085 | Q102: 2098 | S102: stFacultative | T102: 0 | U102: Международные отношения | V102: =MATCH(D102,Отчет!$D:$D,0) -> 65
A103: 1546141857 | B103: 10 | C103: БМО151 | D103: 1171526099 | E103: Горшенина Анастасия Сергеевна | F103: М151БМОТН012 | G103: Введение в программирование | H103: 5 | I103: Экзамен | J103: 2016/2017 учебный год 2 модуль | L103: 50 | M103: 5 | N103: 1 | O103: 1 | P103: 1520574806 | Q103: 2098 | S103: stChoosen | T103: 0 | U103: Международные отношения | V103: =MATCH(D103,Отчет!$D:$D,0) -> 18
A104: 1652992172 | B104: 4 | C104: БМО152 | D104: 1646278328 | E104: Ткачук Андрей Александрович | F104: 116-24/12-143 | G104: Введение в программирование | H104: 5 | I104: Экзамен | J104: 2016/2017 учебный год 2 модуль | L104: 20 | M104: 5 | N104: 1 | O104: 0 | P104: 1520574806 | Q104: 2098 | S104: stChoosen | T104: 0 | U104: Международные отношения | V104: =MATCH(D104,Отчет!$D:$D,0) -> 76
A105: 1546142222 | B105: 10 | C105: БМО152 | D105: 1171525758 | E105: Рыбакова Мария Дмитриевна | F105: М151БМОТН039 | G105: Введение в урбанистику | H105: 5 | I105: Экзамен | J105: 2016/2017 учебный год 2 модуль | L105: 50 | M105: 5 | N105: 1 | O105: 1 | P105: 1520575463 | Q105: 2098 | S105: stChoosen | T105: 0 | U105: Международные отношения | V105: =MATCH(D105,Отчет!$D:$D,0) -> 27
A106: 1546142214 | B106: 4 | C106: БМО152 | D106: 1171524843 | E106: Полунин Андрей Олегович | F106: М151БМОТН037 | G106: Введение в урбанистику | H106: 5 | I106: Экзамен | J106: 2016/2017 учебный год 2 модуль | L106: 20 | M106: 5 | N106: 1 | O106: 1 | P106: 1520575463 | Q106: 2098 | S106: stChoosen | T106: 0 | U106: Международные отношения | V106: =MATCH(D106,Отчет!$D:$D,0) -> 74
A107: 1546142198 | B107: 9 | C107: БМО152 | D107: 1171524924 | E107: Эмануилова Руфь Беньяминовна | F107: М151БМОТН052 | G107: Введение в урбанистику | H107: 5 | I107: Экзамен | J107: 2016/2017 учебный год 2 модуль | L107: 45 | M107: 5 | N107: 1 | O107: 1 | P107: 1520575463 | Q107: 2098 | S107: stChoosen | T107: 0 | U107: Международные отношения | V107: =MATCH(D107,Отчет!$D:$D,0) -> 25
A108: 1546142190 | B108: 10 | C108: БМО152 | D108: 1171524695 | E108: Ларионова Анна Александровна | F108: М151БМОТН029 | G108: Введение в урбанистику | H108: 5 | I108: Экзамен | J108: 2016/2017 учебный год 2 модуль | L108: 50 | M108: 5 | N108: 1 | O108: 1 | P108: 1520575463 | Q108: 2098 | S108: stChoosen | T108: 0 | U108: Международные отношения | V108: =MATCH(D108,Отчет!$D:$D,0) -> 12
A109: 1652921496 | B109: 10 | C109: БМО151 | D109: 1171525971 | E109: Касай Мария Александровна | F109: М151БМОТН023 | G109: Великие книги западной литературы от Гомера до Ницше | H109: 5 | I109: Экзамен | J109: 2016/2017 учебный год 2 модуль | L109: 50 | M109: 5 | N109: 1 | O109: 1 | P109: 1520572540 | Q109: 2098 | S109: stChoosen | T109: 0 | U109: Международные отношения | V109: =MATCH(D109,Отчет!$D:$D,0) -> 35
A110: 1652921359 | B110: 10 | C110: БМО152 | D110: 1171524779 | E110: Смирнова Анна Сергеевна | F110: М151БМОТН045 | G110: Великие книги западной литературы от Гомера до Ницше | H110: 5 | I110: Экзамен | J110: 2016/2017 учебный год 2 модуль | L110: 50 | M110: 5 | N110: 1 | O110: 1 | P110: 1520572540 | Q110: 2098 | S110: stChoosen | T110: 0 | U110: Международные отношения | V110: =MATCH(D110,Отчет!$D:$D,0) -> 39
A111: 1546349759 | B111: 9 | C111: БМО151 | D111: 1171525486 | E111: Веденяпина Полина Павловна | F111: М151БМОТН006 | G111: Великие книги западной литературы от Гомера до Ницше | H111: 5 | I111: Экзамен | J111: 2016/2017 учебный год 2 модуль | L111: 45 | M111: 5 | N111: 1 | O111: 0 | P111: 1520572540 | Q111: 2098 | S111: stChoosen | T111: 0 | U111: Международные отношения | V111: =MATCH(D111,Отчет!$D:$D,0) -> 29
A112: 1656424621 | B112: 10 | C112: БМО151 | D112: 1171524954 | E112: Аракелян Данил Эдуардович | F112: М151БМОТН002 | G112: Власть ключей: ранняя история папства | H112: 2 | I112: Экзамен | J112: 2016/2017 учебный год 2 модуль | L112: 0 | M112: 0 | N112: 1 | O112: 1 | Q112: 5028 | S112: stFacultative | T112: 0 | U112: Международные отношения | V112: =MATCH(D112,Отчет!$D:$D,0) -> 20
A113: 1546141813 | B113: 8 | C113: БМО152 | D113: 1171524173 | E113: Шестеркин Максим Михайлович | F113: М151БМОТН050 | G113: Глобальные вызовы современности и организация комплексной системы безопасности бизнеса | H113: 5 | I113: Экзамен | J113: 2016/2017 учебный год 2 модуль | L113: 40 | M113: 5 | N113: 1 | O113: 1 | P113: 1520572089 | Q113: 2098 | S113: stChoosen | T113: 0 | U113: Международные отношения | V113: =MATCH(D113,Отчет!$D:$D,0) -> 57
A114: 1649885474 | B114: 8 | C114: БМО151 | D114: 1171525638 | E114: Журавлева Анастасия Владимировна | F114: М151БМОТН018 | G114: Глобальные вызовы современности и организация комплексной системы безопасности бизнеса | H114: 5 | I114: Экзамен | J114: 2016/2017 учебный год 2 модуль | L114: 40 | M114: 5 | N114: 1 | O114: 0 | P114: 1520572089 | Q114: 2098 | S114: stChoosen | T114: 0 | U114: Международные отношения | V114: =MATCH(D114,Отчет!$D:$D,0) -> 65
A115: 1546141749 | B115: 9 | C115: БМО151 | D115: 1171525666 | E115: Дельянов Василий Георгиевич | F115: М151БМОТН013 | G115: Глобальные вызовы современности и организация комплексной системы безопасности бизнеса | H115: 5 | I115: Экзамен | J115: 2016/2017 учебный год 2 модуль | L115: 45 | M115: 5 | N115: 1 | O115: 0 | P115: 1520572089 | Q115: 2098 | S115: stChoosen | T115: 0 | U115: Международные отношения | V115: =MATCH(D115,Отчет!$D:$D,0) -> 51
A116: 1546141773 | B116: 9 | C116: БМО152 | D116: 1171525694 | E116: Луизидис Елизавета Милтиадисовна | F116: М151БМОТН030 | G116: Глобальные вызовы современности и организация комплексной системы безопасности бизнеса | H116: 5 | I116: Экзамен | J116: 2016/2017 учебный год 2 модуль | L116: 45 | M116: 5 | N116: 1 | O116: 0 | P116: 1520572089 | Q116: 2098 | S116: stChoosen | T116: 0 | U116: Международные отношения | V116: =MATCH(D116,Отчет!$D:$D,0) -> 49
A117: 1546141733 | B117: 9 | C117: БМО152 | D117: 1171525939 | E117: Эбаноидзе Илья Игоревич | F117: М151БМОТН051 | G117: Глобальные вызовы современности и организация комплексной системы безопасности бизнеса | H117: 5 | I117: Экзамен | J117: 2016/2017 учебный год 2 модуль | L117: 45 | M117: 5 | N117: 1 | O117: 1 | P117: 1520572089 | Q117: 2098 | S117: stChoosen | T117: 0 | U117: Международные отношения | V117: =MATCH(D117,Отчет!$D:$D,0) -> 44
A118: 1546141741 | B118: 8 | C118: БМО151 | D118: 1171525270 | E118: Викторова Арина Владимировна | F118: М151БМОТН007 | G118: Глобальные вызовы современности и организация комплексной системы безопасности бизнеса | H118: 5 | I118: Экзамен | J118: 2016/2017 учебный год 2 модуль | L118: 40 | M118: 5 | N118: 1 | O118: 0 | P118: 1520572089 | Q118: 2098 | S118: stChoosen | T118: 0 | U118: Международные отношения | V118: =MATCH(D118,Отчет!$D:$D,0) -> 52
A119: 1546141765 | B119: 8 | C119: БМО151 | D119: 1171525610 | E119: Зиборов Данил Васильевич | F119: М151БМОТН019 | G119: Глобальные вызовы современности и организация комплексной системы безопасности бизнеса | H119: 5 | I119: Экзамен | J119: 2016/2017 учебный год 2 модуль | L119: 40 | M119: 5 | N119: 1 | O119: 0 | P119: 1520572089 | Q119: 2098 | S119: stChoosen | T119: 0 | U119: Международные отношения | V119: =MATCH(D119,Отчет!$D:$D,0) -> 50
A120: 1546141781 | B120: 9 | C120: БМО151 | D120: 1171525116 | E120: Амиров Андрей Павлович | F120: М151БМОТН001 | G120: Глобальные вызовы современности и организация комплексной системы безопасности бизнеса | H120: 5 | I120: Экзамен | J120: 2016/2017 учебный год 2 модуль | L120: 45 | M120: 5 | N120: 1 | O120: 0 | P120: 1520572089 | Q120: 2098 | S120: stChoosen | T120: 0 | U120: Международные отношения | V120: =MATCH(D120,Отчет!$D:$D,0) -> 22
A121: 1546141757 | B121: 9 | C121: БМО151 | D121: 1171525246 | E121: Внучкова Дарья Владимировна | F121: М151БМОТН008 | G121: Глобальные вызовы современности и организация комплексной системы безопасности бизнеса | H121: 5 | I121: Экзамен | J121: 2016/2017 учебный год 2 модуль | L121: 45 | M121: 5 | N121: 1 | O121: 0 | P121: 1520572089 | Q121: 2098 | S121: stChoosen | T121: 0 | U121: Международные отношения | V121: =MATCH(D121,Отчет!$D:$D,0) -> 60
A122: 1546141829 | B122: 8 | C122: БМО152 | D122: 1181084770 | E122: Царенкова Татьяна | F122: М151БМОТН085 | G122: Глобальные вызовы современности и организация комплексной системы безопасности бизнеса | H122: 5 | I122: Экзамен | J122: 2016/2017 учебный год 2 модуль | L122: 40 | M122: 5 | N122: 1 | O122: 1 | P122: 1520572089 | Q122: 2098 | S122: stChoosen | T122: 0 | U122: Международные отношения | V122: =MATCH(D122,Отчет!$D:$D,0) -> 43
A123: 1546141717 | B123: 8 | C123: БМО152 | D123: 1181078007 | E123: Шевченко Елизавета Андреевна | F123: М151БМОТН072 | G123: Глобальные вызовы современности и организация комплексной системы безопасности бизнеса | H123: 5 | I123: Экзамен | J123: 2016/2017 учебный год 2 модуль | L123: 40 | M123: 5 | N123: 1 | O123: 1 | P123: 1520572089 | Q123: 2098 | S123: stChoosen | T123: 0 | U123: Международные отношения | V123: =MATCH(D123,Отчет!$D:$D,0) -> 71
A124: 1546141789 | B124: 7 | C124: БМО151 | D124: 1181078173 | E124: Игаз Роман | F124: М151БМОТН056 | G124: Глобальные вызовы современности и организация комплексной системы безопасности бизнеса | H124: 5 | I124: Экзамен | J124: 2016/2017 учебный год 2 модуль | L124: 35 | M124: 5 | N124: 1 | O124: 1 | P124: 1520572089 | Q124: 2098 | S124: stChoosen | T124: 0 | U124: Международные отношения | V124: =MATCH(D124,Отчет!$D:$D,0) -> 59
A125: 1546141805 | B125: 8 | C125: БМО151 | D125: 1181078221 | E125: Шварц Даниэль | F125: М151БМОТН062 | G125: Глобальные вызовы современности и организация комплексной системы безопасности бизнеса | H125: 5 | I125: Экзамен | J125: 2016/2017 учебный год 2 модуль | L125: 40 | M125: 5 | N125: 1 | O125: 1 | P125: 1520572089 | Q125: 2098 | S125: stChoosen | T125: 0 | U125: Международные отношения | V125: =MATCH(D125,Отчет!$D:$D,0) -> 38
A126: 1546141725 | B126: 9 | C126: БМО152 | D126: 1171525294 | E126: Федюшкина Екатерина Александровна | F126: М151БМОТН048 | G126: Глобальные вызовы современности и организация комплексной системы безопасности бизнеса | H126: 5 | I126: Экзамен | J126: 2016/2017 учебный год 2 модуль | L126: 45 | M126: 5 | N126: 1 | O126: 0 | P126: 1520572089 | Q126: 2098 | S126: stChoosen | T126: 0 | U126: Международные отношения | V126: =MATCH(D126,Отчет!$D:$D,0) -> 63
A127: 1567452970 | B127: 8 | C127: БМО152 | D127: 1171524528 | E127: Светличный Владислав Александрович | F127: М151БМОТН041 | G127: Иностранный язык (арабский) | H127: 3 | I127: Экзамен | J127: 2016/2017 учебный год 2 модуль | L127: 24 | M127: 3 | N127: 1 | O127: 1 | P127: 1546806085 | Q127: 2098 | S127: stChoosen | T127: 0 | U127: Международные отношения | V127: =MATCH(D127,Отчет!$D:$D,0) -> 19
A128: 1567452952 | B128: 4 | C128: БМО151 | D128: 1171525666 | E128: Дельянов Василий Георгиевич | F128: М151БМОТН013 | G128: Иностранный язык (арабский) | H128: 3 | I128: Экзамен | J128: 2016/2017 учебный год 2 модуль | L128: 12 | M128: 3 | N128: 1 | O128: 0 | P128: 1546806085 | Q128: 2098 | S128: stChoosen | T128: 0 | U128: Международные отношения | V128: =MATCH(D128,Отчет!$D:$D,0) -> 51
A129: 1567452964 | B129: 7 | C129: БМО152 | D129: 1171524579 | E129: Нигмаева Дина Айратовна | F129: М151БМОТН035 | G129: Иностранный язык (арабский) | H129: 3 | I129: Экзамен | J129: 2016/2017 учебный год 2 модуль | L129: 21 | M129: 3 | N129: 1 | O129: 1 | P129: 1546806085 | Q129: 2098 | S129: stChoosen | T129: 0 | U129: Международные отношения | V129: =MATCH(D129,Отчет!$D:$D,0) -> 34
A130: 1567452976 | B130: 7 | C130: БМО152 | D130: 1204015568 | E130: Брозовская Влада | F130: М151БМОТН077 | G130: Иностранный язык (арабский) | H130: 3 | I130: Экзамен | J130: 2016/2017 учебный год 2 модуль | L130: 21 | M130: 3 | N130: 1 | O130: 1 | P130: 1546806085 | Q130: 2098 | S130: stChoosen | T130: 0 | U130: Международные отношения | V130: =MATCH(D130,Отчет!$D:$D,0) -> 54
A131: 1567452958 | B131: 7 | C131: БМО152 | D131: 1181078293 | E131: Навратилова Яна | F131: М151БМОТН057 | G131: Иностранный язык (арабский) | H131: 3 | I131: Экзамен | J131: 2016/2017 учебный год 2 модуль | L131: 21 | M131: 3 | N131: 1 | O131: 1 | P131: 1546806085 | Q131: 2098 | S131: stChoosen | T131: 0 | U131: Международные отношения | V131: =MATCH(D131,Отчет!$D:$D,0) -> 55
A132: 1567452988 | B132: 5 | C132: БМО151 | D132: 1190224994 | E132: Орлов Илья Александрович | F132: М151БМОТН074 | G132: Иностранный язык (арабский) | H132: 3 | I132: Экзамен | J132: 2016/2017 учебный год 2 модуль | L132: 15 | M132: 3 | N132: 1 | O132: 0 | P132: 1546806085 | Q132: 2098 | S132: stChoosen | T132: 0 | U132: Международные отношения | V132: =MATCH(D132,Отчет!$D:$D,0) -> 30
A133: 1567452982 | B133: 8 | C133: БМО151 | D133: 1256428992 | E133: Ибрагим Дианна Джавдатовна | F133: М151БМОТН087 | G133: Иностранный язык (арабский) | H133: 3 | I133: Экзамен | J133: 2016/2017 учебный год 2 модуль | L133: 24 | M133: 3 | N133: 1 | O133: 1 | P133: 1546806085 | Q133: 2098 | S133: stChoosen | T133: 0 | U133: Международные отношения | V133: =MATCH(D133,Отчет!$D:$D,0) -> 72
A134: 1567451431 | B134: 8 | C134: БМО151 | D134: 1171525610 | E134: Зиборов Данил Васильевич | F134: М151БМОТН019 | G134: Иностранный язык (испанский) | H134: 3 | I134: Экзамен | J134: 2016/2017 учебный год 2 модуль | L134: 24 | M134: 3 | N134: 1 | O134: 0 | P134: 1546806085 | Q134: 2098 | S134: stChoosen | T134: 0 | U134: Международные отношения | V134: =MATCH(D134,Отчет!$D:$D,0) -> 50
A135: 1567451445 | B135: 9 | C135: БМО152 | D135: 1171524747 | E135: Кублашвили Анджела Гочевна | F135: М151БМОТН027 | G135: Иностранный язык (испанский) | H135: 3 | I135: Экзамен | J135: 2016/2017 учебный год 2 модуль | L135: 27 | M135: 3 | N135: 1 | O135: 1 | P135: 1546806085 | Q135: 2098 | S135: stChoosen | T135: 0 | U135: Международные отношения | V135: =MATCH(D135,Отчет!$D:$D,0) -> 32
A136: 1567451469 | B136: 8 | C136: БМО152 | D136: 1171524779 | E136: Смирнова Анна Сергеевна | F136: М151БМОТН045 | G136: Иностранный язык (испанский) | H136: 3 | I136: Экзамен | J136: 2016/2017 учебный год 2 модуль | L136: 24 | M136: 3 | N136: 1 | O136: 1 | P136: 1546806085 | Q136: 2098 | S136: stChoosen | T136: 0 | U136: Международные отношения | V136: =MATCH(D136,Отчет!$D:$D,0) -> 39
A137: 1567451407 | B137: 8 | C137: БМО151 | D137: 1171524328 | E137: Горбунова Полина Андреевна | F137: М151БМОТН011 | G137: Иностранный язык (испанский) | H137: 3 | I137: Экзамен | J137: 2016/2017 учебный год 2 модуль | L137: 24 | M137: 3 | N137: 1 | O137: 1 | P137: 1546806085 | Q137: 2098 | S137: stChoosen | T137: 0 | U137: Международные отношения | V137: =MATCH(D137,Отчет!$D:$D,0) -> 40
A138: 1567451422 | B138: 7 | C138: БМО151 | D138: 1171525638 | E138: Журавлева Анастасия Владимировна | F138: М151БМОТН018 | G138: Иностранный язык (испанский) | H138: 3 | I138: Экзамен | J138: 2016/2017 учебный год 2 модуль | L138: 21 | M138: 3 | N138: 1 | O138: 0 | P138: 1546806085 | Q138: 2098 | S138: stChoosen | T138: 0 | U138: Международные отношения | V138: =MATCH(D138,Отчет!$D:$D,0) -> 65
A139: 1567451400 | B139: 7 | C139: БМО151 | D139: 1171525422 | E139: Афанасьева Елена Михайловна | F139: М151БМОТН003 | G139: Иностранный язык (испанский) | H139: 3 | I139: Экзамен | J139: 2016/2017 учебный год 2 модуль | L139: 21 | M139: 3 | N139: 1 | O139: 0 | P139: 1546806085 | Q139: 2098 | S139: stChoosen | T139: 0 | U139: Международные отношения | V139: =MATCH(D139,Отчет!$D:$D,0) -> 37
A140: 1567451463 | B140: 9 | C140: БМО152 | D140: 1171524899 | E140: Смагина Александра Владимировна | F140: М151БМОТН044 | G140: Иностранный язык (испанский) | H140: 3 | I140: Экзамен | J140: 2016/2017 учебный год 2 модуль | L140: 27 | M140: 3 | N140: 1 | O140: 1 | P140: 1546806085 | Q140: 2098 | S140: stChoosen | T140: 0 | U140: Международные отношения | V140: =MATCH(D140,Отчет!$D:$D,0) -> 28
A141: 1567451487 | B141: 8 | C141: БМО152 | D141: 1181084770 | E141: Царенкова Татьяна | F141: М151БМОТН085 | G141: Иностранный язык (испанский) | H141: 3 | I141: Экзамен | J141: 2016/2017 учебный год 2 модуль | L141: 24 | M141: 3 | N141: 1 | O141: 1 | P141: 1546806085 | Q141: 2098 | S141: stChoosen | T141: 0 | U141: Международные отношения | V141: =MATCH(D141,Отчет!$D:$D,0) -> 43
A142: 1567451481 | B142: 8 | C142: БМО152 | D142: 1181077833 | E142: Томчук Виктория Викторовна | F142: М151БМОТН068 | G142: Иностранный язык (испанский) | H142: 3 | I142: Экзамен | J142: 2016/2017 учебный год 2 модуль | L142: 24 | M142: 3 | N142: 1 | O142: 1 | P142: 1546806085 | Q142: 2098 | S142: stChoosen | T142: 0 | U142: Международные отношения | V142: =MATCH(D142,Отчет!$D:$D,0) -> 45
A143: 1567451493 | B143: 6 | C143: БМО152 | D143: 1181078125 | E143: Черезов Евгений Сергеевич | F143: М151БМОТН061 | G143: Иностранный язык (испанский) | H143: 3 | I143: Экзамен | J143: 2016/2017 учебный год 2 модуль | L143: 18 | M143: 3 | N143: 1 | O143: 1 | P143: 1546806085 | Q143: 2098 | S143: stChoosen | T143: 0 | U143: Международные отношения | V143: =MATCH(D143,Отчет!$D:$D,0) -> 69
A144: 1567451500 | B144: 10 | C144: БМО151 | D144: 1181078221 | E144: Шварц Даниэль | F144: М151БМОТН062 | G144: Иностранный язык (испанский) | H144: 3 | I144: Экзамен | J144: 2016/2017 учебный год 2 модуль | L144: 30 | M144: 3 | N144: 1 | O144: 1 | P144: 1546806085 | Q144: 2098 | S144: stChoosen | T144: 0 | U144: Международные отношения | V144: =MATCH(D144,Отчет!$D:$D,0) -> 38
A145: 1567451438 | B145: 9 | C145: БМО151 | D145: 1171526003 | E145: Каменькович Надежда Евгеньевна | F145: М151БМОТН022 | G145: Иностранный язык (испанский) | H145: 3 | I145: Экзамен | J145: 2016/2017 учебный год 2 модуль | L145: 27 | M145: 3 | N145: 1 | O145: 1 | P145: 1546806085 | Q145: 2098 | S145: stChoosen | T145: 0 | U145: Международные отношения | V145: =MATCH(D145,Отчет!$D:$D,0) -> 26
A146: 1567451394 | B146: 6 | C146: БМО151 | D146: 1181077809 | E146: Абдолова Садаф | F146: М151БМОТН063 | G146: Иностранный язык (испанский) | H146: 3 | I146: Экзамен | J146: 2016/2017 учебный год 2 модуль | L146: 18 | M146: 3 | N146: 1 | O146: 1 | P146: 1546806085 | Q146: 2098 | S146: stChoosen | T146: 0 | U146: Международные отношения | V146: =MATCH(D146,Отчет!$D:$D,0) -> 56
A147: 1567451415 | B147: 8 | C147: БМО151 | D147: 1171525582 | E147: Елизарова Анастасия Константиновна | F147: М151БМОТН016 | G147: Иностранный язык (испанский) | H147: 3 | I147: Экзамен | J147: 2016/2017 учебный год 2 модуль | L147: 24 | M147: 3 | N147: 1 | O147: 0 | P147: 1546806085 | Q147: 2098 | S147: stChoosen | T147: 0 | U147: Международные отношения | V147: =MATCH(D147,Отчет!$D:$D,0) -> 67
A148: 1567452242 | B148: 7 | C148: БМО151 | D148: 1181078173 | E148: Игаз Роман | F148: М151БМОТН056 | G148: Иностранный язык (итальянский) | H148: 3 | I148: Экзамен | J148: 2016/2017 учебный год 2 модуль | L148: 21 | M148: 3 | N148: 1 | O148: 1 | P148: 1546806085 | Q148: 2098 | S148: stChoosen | T148: 0 | U148: Международные отношения | V148: =MATCH(D148,Отчет!$D:$D,0) -> 59
A149: 1567452260 | B149: 9 | C149: БМО151 | D149: 1181077905 | E149: Тулум Андрей Сергеевич | F149: М151БМОТН069 | G149: Иностранный язык (итальянский) | H149: 3 | I149: Экзамен | J149: 2016/2017 учебный год 2 модуль | L149: 27 | M149: 3 | N149: 1 | O149: 1 | P149: 1546806085 | Q149: 2098 | S149: stChoosen | T149: 0 | U149: Международные отношения | V149: =MATCH(D149,Отчет!$D:$D,0) -> 24
A150: 1567452272 | B150: 5 | C150: БМО152 | D150: 1171524843 | E150: Полунин Андрей Олегович | F150: М151БМОТН037 | G150: Иностранный язык (итальянский) | H150: 3 | I150: Экзамен | J150: 2016/2017 учебный год 2 модуль | L150: 15 | M150: 3 | N150: 1 | O150: 1 | P150: 1546806085 | Q150: 2098 | S150: stChoosen | T150: 0 | U150: Международные отношения | V150: =MATCH(D150,Отчет!$D:$D,0) -> 74
A151: 1567452217 | B151: 8 | C151: БМО151 | D151: 1171524954 | E151: Аракелян Данил Эдуардович | F151: М151БМОТН002 | G151: Иностранный язык (итальянский) | H151: 3 | I151: Экзамен | J151: 2016/2017 учебный год 2 модуль | L151: 24 | M151: 3 | N151: 1 | O151: 1 | P151: 1546806085 | Q151: 2098 | S151: stChoosen | T151: 0 | U151: Международные отношения | V151: =MATCH(D151,Отчет!$D:$D,0) -> 20
A152: 1567452278 | B152: 7 | C152: БМО152 | D152: 1171525758 | E152: Рыбакова Мария Дмитриевна | F152: М151БМОТН039 | G152: Иностранный язык (итальянский) | H152: 3 | I152: Экзамен | J152: 2016/2017 учебный год 2 модуль | L152: 21 | M152: 3 | N152: 1 | O152: 1 | P152: 1546806085 | Q152: 2098 | S152: stChoosen | T152: 0 | U152: Международные отношения | V152: =MATCH(D152,Отчет!$D:$D,0) -> 27
A153: 1567452284 | B153: 6 | C153: БМО152 | D153: 1171525454 | E153: Самородова Алена Дмитриевна | F153: М151БМОТН040 | G153: Иностранный язык (итальянский) | H153: 3 | I153: Экзамен | J153: 2016/2017 учебный год 2 модуль | L153: 18 | M153: 3 | N153: 1 | O153: 0 | P153: 1546806085 | Q153: 2098 | S153: stChoosen | T153: 0 | U153: Международные отношения | V153: =MATCH(D153,Отчет!$D:$D,0) -> 68
A154: 1567452248 | B154: 5 | C154: БМО151 | D154: 1171524352 | E154: Калугина Мария Геннадьевна | F154: М151БМОТН021 | G154: Иностранный язык (итальянский) | H154: 3 | I154: Экзамен | J154: 2016/2017 учебный год 2 модуль | L154: 15 | M154: 3 | N154: 1 | O154: 1 | P154: 1546806085 | Q154: 2098 | S154: stChoosen | T154: 0 | U154: Международные отношения | V154: =MATCH(D154,Отчет!$D:$D,0) -> 70
A155: 1567452223 | B155: 4 | C155: БМО151 | D155: 1171525246 | E155: Внучкова Дарья Владимировна | F155: М151БМОТН008 | G155: Иностранный язык (итальянский) | H155: 3 | I155: Экзамен | J155: 2016/2017 учебный год 2 модуль | L155: 12 | M155: 3 | N155: 1 | O155: 0 | P155: 1546806085 | Q155: 2098 | S155: stChoosen | T155: 0 | U155: Международные отношения | V155: =MATCH(D155,Отчет!$D:$D,0) -> 60
A156: 1567452229 | B156: 8 | C156: БМО151 | D156: 1171524504 | E156: Глиба Виктория Ивановна | F156: М151БМОТН010 | G156: Иностранный язык (итальянский) | H156: 3 | I156: Экзамен | J156: 2016/2017 учебный год 2 модуль | L156: 24 | M156: 3 | N156: 1 | O156: 1 | P156: 1546806085 | Q156: 2098 | S156: stChoosen | T156: 0 | U156: Международные отношения | V156: =MATCH(D156,Отчет!$D:$D,0) -> 33
A157: 1567452292 | B157: 9 | C157: БМО152 | D157: 1171524867 | E157: Чкадуа Тимерлан Автандилович | F157: М151БМОТН049 | G157: Иностранный язык (итальянский) | H157: 3 | I157: Экзамен | J157: 2016/2017 учебный год 2 модуль | L157: 27 | M157: 3 | N157: 1 | O157: 1 | P157: 1546806085 | Q157: 2098 | S157: stChoosen | T157: 0 | U157: Международные отношения | V157: =MATCH(D157,Отчет!$D:$D,0) -> 15
A158: 1567452698 | B158: 6 | C158: БМО152 | D158: 1171524719 | E158: Лыков Михаил Евгеньевич | F158: М151БМОТН032 | G158: Иностранный язык (китайский) | H158: 3 | I158: Экзамен | J158: 2016/2017 учебный год 2 модуль | L158: 18 | M158: 3 | N158: 1 | O158: 1 | P158: 1546806085 | Q158: 2098 | S158: stChoosen | T158: 0 | U158: Международные отношения | V158: =MATCH(D158,Отчет!$D:$D,0) -> 42
A159: 1567452686 | B159: 4 | C159: БМО151 | D159: 1181078245 | E159: Ахонов Осман | F159: М151БМОТН055 | G159: Иностранный язык (китайский) | H159: 3 | I159: Экзамен | J159: 2016/2017 учебный год 2 модуль | L159: 12 | M159: 3 | N159: 1 | O159: 1 | P159: 1546806085 | Q159: 2098 | R159: ikPassed | S159: stChoosen | T159: 0 | U159: Международные отношения | V159: =MATCH(D159,Отчет!$D:$D,0) -> 64
A160: 1567452692 | B160: 6 | C160: БМО151 | D160: 1171524611 | E160: Нечаева Александра Игоревна | F160: М151БМОТН034 | G160: Иностранный язык (китайский) | H160: 3 | I160: Экзамен | J160: 2016/2017 учебный год 2 модуль | L160: 18 | M160: 3 | N160: 1 | O160: 1 | P160: 1546806085 | Q160: 2098 | S160: stChoosen | T160: 0 | U160: Международные отношения | V160: =MATCH(D160,Отчет!$D:$D,0) -> 47
A161: 1567450987 | B161: 6 | C161: БМО152 | D161: 1171524480 | E161: Купцов Александр Владимирович | F161: М151БМОТН028 | G161: Иностранный язык (немецкий) | H161: 3 | I161: Экзамен | J161: 2016/2017 учебный год 2 модуль | L161: 18 | M161: 3 | N161: 1 | O161: 1 | P161: 1546806085 | Q161: 2098 | S161: stChoosen | T161: 0 | U161: Международные отношения | V161: =MATCH(D161,Отчет!$D:$D,0) -> 31
A162: 1567450949 | B162: 10 | C162: БМО151 | D162: 1171525270 | E162: Викторова Арина Владимировна | F162: М151БМОТН007 | G162: Иностранный язык (немецкий) | H162: 3 | I162: Экзамен | J162: 2016/2017 учебный год 2 модуль | L162: 30 | M162: 3 | N162: 1 | O162: 0 | P162: 1546806085 | Q162: 2098 | S162: stChoosen | T162: 0 | U162: Международные отношения | V162: =MATCH(D162,Отчет!$D:$D,0) -> 52
A163: 1567457082 | B163: 7 | C163: БМО152 | D163: 1171525939 | E163: Эбаноидзе Илья Игоревич | F163: М151БМОТН051 | G163: Иностранный язык (немецкий) | H163: 3 | I163: Экзамен | J163: 2016/2017 учебный год 2 модуль | L163: 21 | M163: 3 | N163: 1 | O163: 1 | P163: 1546806085 | Q163: 2098 | S163: stChoosen | T163: 0 | U163: Международные отношения | V163: =MATCH(D163,Отчет!$D:$D,0) -> 44
A164: 1567457069 | B164: 10 | C164: БМО152 | D164: 1171526067 | E164: Лукашенко Анна Дмитриевна | F164: М151БМОТН031 | G164: Иностранный язык (немецкий) | H164: 3 | I164: Экзамен | J164: 2016/2017 учебный год 2 модуль | L164: 30 | M164: 3 | N164: 1 | O164: 1 | P164: 1546806085 | Q164: 2098 | S164: stChoosen | T164: 0 | U164: Международные отношения | V164: =MATCH(D164,Отчет!$D:$D,0) -> 16
A165: 1567451005 | B165: 10 | C165: БМО152 | D165: 1171524695 | E165: Ларионова Анна Александровна | F165: М151БМОТН029 | G165: Иностранный язык (немецкий) | H165: 3 | I165: Экзамен | J165: 2016/2017 учебный год 2 модуль | L165: 30 | M165: 3 | N165: 1 | O165: 1 | P165: 1546806085 | Q165: 2098 | S165: stChoosen | T165: 0 | U165: Международные отношения | V165: =MATCH(D165,Отчет!$D:$D,0) -> 12
A166: 1567451131 | B166: 4 | C166: БМО152 | D166: 1181078007 | E166: Шевченко Елизавета Андреевна | F166: М151БМОТН072 | G166: Иностранный язык (немецкий) | H166: 3 | I166: Экзамен | J166: 2016/2017 учебный год 2 модуль | L166: 12 | M166: 3 | N166: 1 | O166: 1 | P166: 1546806085 | Q166: 2098 | S166: stChoosen | T166: 0 | U166: Международные отношения | V166: =MATCH(D166,Отчет!$D:$D,0) -> 71
A167: 1567451123 | B167: 5 | C167: БМО152 | D167: 1181077931 | E167: Хромова Альбина Олеговна | F167: М151БМОТН070 | G167: Иностранный язык (немецкий) | H167: 3 | I167: Экзамен | J167: 2016/2017 учебный год 2 модуль | L167: 15 | M167: 3 | N167: 1 | O167: 1 | P167: 1546806085 | Q167: 2098 | S167: stChoosen | T167: 0 | U167: Международные отношения | V167: =MATCH(D167,Отчет!$D:$D,0) -> 58
A168: 1567450935 | B168: 7 | C168: БМО151 | D168: 1171526163 | E168: Баранова Анастасия Сергеевна | F168: М151БМОТН004 | G168: Иностранный язык (немецкий) | H168: 3 | I168: Экзамен | J168: 2016/2017 учебный год 2 модуль | L168: 21 | M168: 3 | N168: 1 | O168: 1 | P168: 1546806085 | Q168: 2098 | S168: stChoosen | T168: 0 | U168: Международные отношения | V168: =MATCH(D168,Отчет!$D:$D,0) -> 36
A169: 1567457128 | B169: 5 | C169: БМО151 | D169: 1181084855 | E169: Еремеев Иван | F169: М151БМОТН078 | G169: Иностранный язык (немецкий) | H169: 3 | I169: Экзамен | J169: 2016/2017 учебный год 2 модуль | L169: 15 | M169: 3 | N169: 1 | O169: 1 | P169: 1546806085 | Q169: 2098 | S169: stChoosen | T169: 0 | U169: Международные отношения | V169: =MATCH(D169,Отчет!$D:$D,0) -> 75
A170: 1567450960 | B170: 9 | C170: БМО151 | D170: 1171524635 | E170: Дьячкова Дарья Валерьевна | F170: М151БМОТН014 | G170: Иностранный язык (немецкий) | H170: 3 | I170: Экзамен | J170: 2016/2017 учебный год 2 модуль | L170: 27 | M170: 3 | N170: 1 | O170: 1 | P170: 1546806085 | Q170: 2098 | S170: stChoosen | T170: 0 | U170: Международные отношения | V170: =MATCH(D170,Отчет!$D:$D,0) -> 14
A171: 1567450942 | B171: 9 | C171: БМО151 | D171: 1171525030 | E171: Батманова Анастасия Олеговна | F171: М151БМОТН005 | G171: Иностранный язык (немецкий) | H171: 3 | I171: Экзамен | J171: 2016/2017 учебный год 2 модуль | L171: 27 | M171: 3 | N171: 1 | O171: 1 | P171: 1546806085 | Q171: 2098 | S171: stChoosen | T171: 0 | U171: Международные отношения | V171: =MATCH(D171,Отчет!$D:$D,0) -> 48
A172: 1567451052 | B172: 6 | C172: БМО152 | D172: 1171525550 | E172: Платонова Анастасия Ивановна | F172: М151БМОТН036 | G172: Иностранный язык (немецкий) | H172: 3 | I172: Экзамен | J172: 2016/2017 учебный год 2 модуль | L172: 18 | M172: 3 | N172: 1 | O172: 0 | P172: 1546806085 | Q172: 2098 | S172: stChoosen | T172: 0 | U172: Международные отношения | V172: =MATCH(D172,Отчет!$D:$D,0) -> 62
A173: 1567457048 | B173: 8 | C173: БМО151 | D173: 1171525486 | E173: Веденяпина Полина Павловна | F173: М151БМОТН006 | G173: Иностранный язык (немецкий) | H173: 3 | I173: Экзамен | J173: 2016/2017 учебный год 2 модуль | L173: 24 | M173: 3 | N173: 1 | O173: 0 | P173: 1546806085 | Q173: 2098 | S173: stChoosen | T173: 0 | U173: Международные отношения | V173: =MATCH(D173,Отчет!$D:$D,0) -> 29
A174: 1567450975 | B174: 7 | C174: БМО151 | D174: 1171524205 | E174: Ерохина Екатерина Андреевна | F174: М151БМОТН017 | G174: Иностранный язык (немецкий) | H174: 3 | I174: Экзамен | J174: 2016/2017 учебный год 2 модуль | L174: 21 | M174: 3 | N174: 1 | O174: 1 | P174: 1546806085 | Q174: 2098 | S174: stChoosen | T174: 0 | U174: Международные отношения | V174: =MATCH(D174,Отчет!$D:$D,0) -> 41
A175: 1567451093 | B175: 5 | C175: БМО152 | D175: 1171525294 | E175: Федюшкина Екатерина Александровна | F175: М151БМОТН048 | G175: Иностранный язык (немецкий) | H175: 3 | I175: Экзамен | J175: 2016/2017 учебный год 2 модуль | L175: 15 | M175: 3 | N175: 1 | O175: 0 | P175: 1546806085 | Q175: 2098 | S175: stChoosen | T175: 0 | U175: Международные отношения | V175: =MATCH(D175,Отчет!$D:$D,0) -> 63
A176: 1567451629 | B176: 9 | C176: БМО152 | D176: 1171524924 | E176: Эмануилова Руфь Беньяминовна | F176: М151БМОТН052 | G176: Иностранный язык (португальский) | H176: 3 | I176: Экзамен | J176: 2016/2017 учебный год 2 модуль | L176: 27 | M176: 3 | N176: 1 | O176: 1 | P176: 1546806085 | Q176: 2098 | S176: stChoosen | T176: 0 | U176: Международные отношения | V176: =MATCH(D176,Отчет!$D:$D,0) -> 25
A177: 1567451611 | B177: 9 | C177: БМО152 | D177: 1171524989 | E177: Семенюк Татьяна Олеговна | F177: М151БМОТН042 | G177: Иностранный язык (португальский) | H177: 3 | I177: Экзамен | J177: 2016/2017 учебный год 2 модуль | L177: 27 | M177: 3 | N177: 1 | O177: 1 | P177: 1546806085 | Q177: 2098 | S177: stChoosen | T177: 0 | U177: Международные отношения | V177: =MATCH(D177,Отчет!$D:$D,0) -> 21
A178: 1567451593 | B178: 10 | C178: БМО151 | D178: 1171526099 | E178: Горшенина Анастасия Сергеевна | F178: М151БМОТН012 | G178: Иностранный язык (португальский) | H178: 3 | I178: Экзамен | J178: 2016/2017 учебный год 2 модуль | L178: 30 | M178: 3 | N178: 1 | O178: 1 | P178: 1546806085 | Q178: 2098 | S178: stChoosen | T178: 0 | U178: Международные отношения | V178: =MATCH(D178,Отчет!$D:$D,0) -> 18
A179: 1567451587 | B179: 8 | C179: БМО151 | D179: 1171525116 | E179: Амиров Андрей Павлович | F179: М151БМОТН001 | G179: Иностранный язык (португальский) | H179: 3 | I179: Экзамен | J179: 2016/2017 учебный год 2 модуль | L179: 24 | M179: 3 | N179: 1 | O179: 0 | P179: 1546806085 | Q179: 2098 | S179: stChoosen | T179: 0 | U179: Международные отношения | V179: =MATCH(D179,Отчет!$D:$D,0) -> 22
A180: 1567451623 | B180: 4 | C180: БМО152 | D180: 1181084889 | E180: Насырходжаев Иброхимбек Давронович | F180: М151БМОТН075 | G180: Иностранный язык (португальский) | H180: 3 | I180: Экзамен | J180: 2016/2017 учебный год 2 модуль | L180: 12 | M180: 3 | N180: 1 | O180: 1 | P180: 1546806085 | Q180: 2098 | S180: stChoosen | T180: 0 | U180: Международные отношения | V180: =MATCH(D180,Отчет!$D:$D,0) -> 73
A181: 1567451956 | B181: 9 | C181: БМО151 | D181: 1171525971 | E181: Касай Мария Александровна | F181: М151БМОТН023 | G181: Иностранный язык (французский) | H181: 3 | I181: Экзамен | J181: 2016/2017 учебный год 2 модуль | L181: 27 | M181: 3 | N181: 1 | O181: 1 | P181: 1546806085 | Q181: 2098 | S181: stChoosen | T181: 0 | U181: Международные отношения | V181: =MATCH(D181,Отчет!$D:$D,0) -> 35
A182: 1567451998 | B182: 10 | C182: БМО152 | D182: 1171526131 | E182: Юхим Инна Михайловна | F182: М151БМОТН053 | G182: Иностранный язык (французский) | H182: 3 | I182: Экзамен | J182: 2016/2017 учебный год 2 модуль | L182: 30 | M182: 3 | N182: 1 | O182: 1 | P182: 1546806085 | Q182: 2098 | S182: stChoosen | T182: 0 | U182: Международные отношения | V182: =MATCH(D182,Отчет!$D:$D,0) -> 17
A183: 1567451986 | B183: 8 | C183: БМО152 | D183: 1181084821 | E183: Шестак Сергей Игоревич | F183: М151БМОТН086 | G183: Иностранный язык (французский) | H183: 3 | I183: Экзамен | J183: 2016/2017 учебный год 2 модуль | L183: 24 | M183: 3 | N183: 1 | O183: 1 | P183: 1546806085 | Q183: 2098 | S183: stChoosen | T183: 0 | U183: Международные отношения | V183: =MATCH(D183,Отчет!$D:$D,0) -> 53
A184: 1567451962 | B184: 7 | C184: БМО152 | D184: 1171525694 | E184: Луизидис Елизавета Милтиадисовна | F184: М151БМОТН030 | G184: Иностранный язык (французский) | H184: 3 | I184: Экзамен | J184: 2016/2017 учебный год 2 модуль | L184: 21 | M184: 3 | N184: 1 | O184: 0 | P184: 1546806085 | Q184: 2098 | S184: stChoosen | T184: 0 | U184: Международные отношения | V184: =MATCH(D184,Отчет!$D:$D,0) -> 49
A185: 1567451950 | B185: 10 | C185: БМО151 | D185: 1171525326 | E185: Егорычева Екатерина Ильинична | F185: М151БМОТН015 | G185: Иностранный язык (французский) | H185: 3 | I185: Экзамен | J185: 2016/2017 учебный год 2 модуль | L185: 30 | M185: 3 | N185: 1 | O185: 0 | P185: 1546806085 | Q185: 2098 | S185: stChoosen | T185: 0 | U185: Международные отношения | V185: =MATCH(D185,Отчет!$D:$D,0) -> 13
A186: 1567451992 | B186: 7 | C186: БМО152 | D186: 1171524173 | E186: Шестеркин Максим Михайлович | F186: М151БМОТН050 | G186: Иностранный язык (французский) | H186: 3 | I186: Экзамен | J186: 2016/2017 учебный год 2 модуль | L186: 21 | M186: 3 | N186: 1 | O186: 1 | P186: 1546806085 | Q186: 2098 | S186: stChoosen | T186: 0 | U186: Международные отношения | V186: =MATCH(D186,Отчет!$D:$D,0) -> 57
A187: 1567451968 | B187: 6 | C187: БМО151 | D187: 1181084838 | E187: Литвинюк Владислав | F187: М151БМОТН079 | G187: Иностранный язык (французский) | H187: 3 | I187: Экзамен | J187: 2016/2017 учебный год 2 модуль | L187: 18 | M187: 3 | N187: 1 | O187: 1 | P187: 1546806085 | Q187: 2098 | S187: stChoosen | T187: 0 | U187: Международные отношения | V187: =MATCH(D187,Отчет!$D:$D,0) -> 66
A188: 1567451974 | B188: 5 | C188: БМО151 | D188: 1171525358 | E188: Сухобаевский Алексей Игоревич | F188: М151БМОТН047 | G188: Иностранный язык (французский) | H188: 3 | I188: Экзамен | J188: 2016/2017 учебный год 2 модуль | L188: 15 | M188: 3 | N188: 1 | O188: 0 | P188: 1546806085 | Q188: 2098 | S188: stChoosen | T188: 0 | U188: Международные отношения | V188: =MATCH(D188,Отчет!$D:$D,0) -> 61
A189: 1652991322 | C189: БМО152 | D189: 1646278328 | E189: Ткачук Андрей Александрович | F189: 116-24/12-143 | G189: Иностранный язык (японский) | H189: 3 | I189: Экзамен | J189: 2016/2017 учебный год 2 модуль | K189: 0 | L189: 0 | M189: 3 | O189: 0 | P189: 1546806085 | Q189: 2098 | R189: ikNextYear | S189: stChoosen | T189: 1 | U189: Международные отношения | V189: =MATCH(D189,Отчет!$D:$D,0) -> 76
A190: 1567452734 | B190: 8 | C190: БМО151 | D190: 1171526035 | E190: Галимова Алина Ленаровна | F190: М151БМОТН009 | G190: Иностранный язык (японский) | H190: 3 | I190: Экзамен | J190: 2016/2017 учебный год 2 модуль | L190: 24 | M190: 3 | N190: 1 | O190: 1 | P190: 1546806085 | Q190: 2098 | S190: stChoosen | T190: 0 | U190: Международные отношения | V190: =MATCH(D190,Отчет!$D:$D,0) -> 23
A191: 1567452740 | B191: 8 | C191: БМО152 | D191: 498441909 | E191: Пульникова Полина Алексеевна | F191: М141БМОТН035 | G191: Иностранный язык (японский) | H191: 3 | I191: Экзамен | J191: 2016/2017 учебный год 2 модуль | L191: 24 | M191: 3 | N191: 1 | O191: 0 | P191: 1546806085 | Q191: 2098 | S191: stChoosen | T191: 0 | U191: Международные отношения | V191: =MATCH(D191,Отчет!$D:$D,0) -> 46
A192: 1546141849 | B192: 9 | C192: БМО152 | D192: 498441909 | E192: Пульникова Полина Алексеевна | F192: М141БМОТН035 | G192: Культура современных обществ: социологический анализ | H192: 5 | I192: Экзамен | J192: 2016/2017 учебный год 2 модуль | L192: 45 | M192: 5 | N192: 1 | O192: 0 | P192: 1520572185 | Q192: 2098 | S192: stChoosen | T192: 0 | U192: Международные отношения | V192: =MATCH(D192,Отчет!$D:$D,0) -> 46
A193: 1546142246 | B193: 9 | C193: БМО151 | D193: 1190224994 | E193: Орлов Илья Александрович | F193: М151БМОТН074 | G193: Логика и основы критического мышления | H193: 5 | I193: Экзамен | J193: 2016/2017 учебный год 2 модуль | L193: 45 | M193: 5 | N193: 1 | O193: 0 | P193: 1520574603 | Q193: 2098 | S193: stChoosen | T193: 0 | U193: Международные отношения | V193: =MATCH(D193,Отчет!$D:$D,0) -> 30
A194: 1546142254 | B194: 8 | C194: БМО151 | D194: 1171524954 | E194: Аракелян Данил Эдуардович | F194: М151БМОТН002 | G194: Логика и основы критического мышления | H194: 5 | I194: Экзамен | J194: 2016/2017 учебный год 2 модуль | L194: 40 | M194: 5 | N194: 1 | O194: 1 | P194: 1520574603 | Q194: 2098 | S194: stChoosen | T194: 0 | U194: Международные отношения | V194: =MATCH(D194,Отчет!$D:$D,0) -> 20
A195: 1567431471 | B195: 6 | C195: БМО151 | D195: 1256428992 | E195: Ибрагим Дианна Джавдатовна | F195: М151БМОТН087 | G195: Мегатренды глобального развития | H195: 3 | I195: Экзамен | J195: 2016/2017 учебный год 2 модуль | L195: 18 | M195: 3 | N195: 1 | O195: 1 | P195: 1546806085 | Q195: 2098 | S195: stCommon | T195: 0 | U195: Международные отношения | V195: =MATCH(D195,Отчет!$D:$D,0) -> 72
A196: 1652991079 | B196: 8 | C196: БМО152 | D196: 1646278328 | E196: Ткачук Андрей Александрович | F196: 116-24/12-143 | G196: Мегатренды глобального развития | H196: 3 | I196: Экзамен | J196: 2016/2017 учебный год 2 модуль | L196: 24 | M196: 3 | N196: 1 | O196: 0 | P196: 1546806085 | Q196: 2098 | R196: ikPassed | S196: stCommon | T196: 0 | U196: Международные отношения | V196: =MATCH(D196,Отчет!$D:$D,0) -> 76
A197: 1567431021 | B197: 6 | C197: БМО152 | D197: 1181078293 | E197: Навратилова Яна | F197: М151БМОТН057 | G197: Мегатренды глобального развития | H197: 3 | I197: Экзамен | J197: 2016/2017 учебный год 2 модуль | L197: 18 | M197: 3 | N197: 1 | O197: 1 | P197: 1546806085 | Q197: 2098 | S197: stCommon | T197: 0 | U197: Международные отношения | V197: =MATCH(D197,Отчет!$D:$D,0) -> 55
A198: 1567431864 | B198: 10 | C198: БМО152 | D198: 1181084770 | E198: Царенкова Татьяна | F198: М151БМОТН085 | G198: Мегатренды глобального развития | H198: 3 | I198: Экзамен | J198: 2016/2017 учебный год 2 модуль | L198: 30 | M198: 3 | N198: 1 | O198: 1 | P198: 1546806085 | Q198: 2098 | S198: stCommon | T198: 0 | U198: Международные отношения | V198: =MATCH(D198,Отчет!$D:$D,0) -> 43
A199: 1567432044 | B199: 7 | C199: БМО152 | D199: 1181084821 | E199: Шестак Сергей Игоревич | F199: М151БМОТН086 | G199: Мегатренды глобального развития | H199: 3 | I199: Экзамен | J199: 2016/2017 учебный год 2 модуль | L199: 21 | M199: 3 | N199: 1 | O199: 1 | P199: 1546806085 | Q199: 2098 | S199: stCommon | T199: 0 | U199: Международные отношения | V199: =MATCH(D199,Отчет!$D:$D,0) -> 53
A200: 1567431501 | B200: 4 | C200: БМО151 | D200: 1181084838 | E200: Литвинюк Владислав | F200: М151БМОТН079 | G200: Мегатренды глобального развития | H200: 3 | I200: Экзамен | J200: 2016/2017 учебный год 2 модуль | L200: 12 | M200: 3 | N200: 1 | O200: 1 | P200: 1546806085 | Q200: 2098 | S200: stCommon | T200: 0 | U200: Международные отношения | V200: =MATCH(D200,Отчет!$D:$D,0) -> 66
... 1205 more rows
